{"text_format":"1","workbook":"xlsx","n_sheets":11,"sheets":["Income","Skipton BS","Expenses","Balance Sheet","Closing Debtors & Creditors","Opening Debtors & Creditors","Income & Expenditure (2)","Notes 2015-16","MembersList 2014","League Calculations","Sheet2"],"not_rendered":{"charts":0,"images":0,"macros":0,"external_links":1,"defined_names":11,"comments":0,"pivot_tables":0},"unopened":[],"bounds":{"document_bytes":16777216,"sheet_cells":100000,"rows_first":2000,"rows_last":500,"rows_between":2000,"halvings":0,"cell_chars":16384,"cell_head_chars":4096},"cells_cut":0,"cells_raw":0,"read":"whole","date_system":"1904"}

{"sheet":"Income","index":0,"n_rows":192,"n_cols":30,"rows_kept":192,"cut":false,"hidden":false,"merged":[]}
["Manchester County Bridge Association ",null,null,null,null,null,null,null,"Accounts 2015 - 2016"]
[]
["Income",null,null,null,null,null,null,null,null,null,null,null,null,null,null,null,"(March)","(July)"]
[null,null,null,null,null,null,null,null,null,null,"League & ",null,null,null,null,"Merville","Pairs","Teams",null,null,"Summer","Autumn",null,null,"Players Progress","EBU delegate","Outstanding","Prior Year","Loan from"]
[null,null,null,null,null,"EBU","EBU P2P","EBU P2P","MCBA","EBU","Cup","Higson      ","Over","EBU","Gazette","Goldstone","Green","Green","Manchester","Ben","Intermediate","Intermediate","Cantor Cup","Newcomers","and Kevin Comrie","Expenses","from previous ","Corrections","Treasurer","Totals"]
["Date","Reference","Details","Cash","Bank","P2P (clubs)","League","Cup","Affiliates","League",">4 players","Cup & Plate","Payment","BFA","Trophy","Trophy","Points","Points","Congress","Franks","Pairs","Pairs",null,"League","Cups",null,"Year"]
[]
[null,null,"B/Fwd Balance",null,3826.78,null,null,null,null,null,null,null,null,null,null,null,null,null,null,null,null,null,null,null,null,null,null,null,null,3826.78]
["Sundry Debtors as at 31st March 2015"]
[null,"League Overpayments (creditor) b/f £54",null,null,null,null,null,null,null,null,null,null,null,null,null,null,null,null,null,null,null,null,null,null,null,null,54]
[null,"EBU P2P debtor b/f £116.20",null,null,null,null,null,null,null,null,null,null,null,null,null,null,null,null,null,null,null,null,null,null,null,null,-116.2]
[]
[]
[null,null,"EBU P2P March",null,116.2,null,null,null,null,null,null,null,null,null,null,null,null,null,null,null,null,null,null,null,null,null,116.2,null,null,{"$f":"SUM(F14:AC14)","v":116.2}]
[null,null,"EBU P2P April",null,279.51,279.51,null,null,null,null,null,null,null,null,null,null,null,null,null,null,null,null,null,null,null,null,null,null,null,{"$f":"SUM(F15:AC15)","v":279.51}]
[]
[null,null,"Davenport - 2 extra players",null,10,null,null,null,null,null,null,null,null,null,null,null,null,null,null,null,null,null,null,null,null,null,null,10,null,10]
[]
[null,null,"City Aces - Extra Player & Affiliation fee",null,11,null,null,null,null,null,null,null,null,null,null,null,null,null,null,null,null,null,null,null,null,null,null,11,null,11]
[]
[null,null,"EBU P2P May",null,105.49,105.49,null,null,null,null,null,null,null,null,null,null,null,null,null,null,null,null,null,null,null,null,null,null,null,105.49]
[null,null,"EBU BFL?",null,63,null,null,null,null,null,null,null,null,63,null,null,null,null,null,null,null,null,null,null,null,null,null,null,null,63]
[]
[null,10175,"Summer Intermediate Pairs",null,294,null,null,null,null,null,null,null,null,null,null,null,null,null,null,null,294,null,null,null,null,null,null,null,null,294]
[null,null,"EBU P2P June",null,291.83,291.83,null,null,null,null,null,null,null,null,null,null,null,null,null,null,null,null,null,null,null,null,null,null,null,291.83]
[]
[null,null,"League-Leaders with Attitude",null,40,null,5,5,null,20,null,10,null,null,null,null,null,null,null,null,null,null,null,null,null,null,null,null,null,40]
[null,100752,"GreenPointed Swiss teams-July",null,1595,null,null,null,null,null,null,null,null,null,null,null,null,null,null,null,null,null,null,null,null,null,null,null,null,0]
[null,null,"100 Entries @ £18",null,null,null,null,null,null,null,null,null,null,null,null,null,null,1800,null,null,null,null,null,null,null,null,null,null,null,1800]
[null,null,"Refreshments",null,null,null,null,null,null,null,null,null,null,null,null,null,null,-47,null,null,null,null,null,null,null,null,null,null,null,-47]
[null,null,"Prizes-Wine",null,null,null,null,null,null,null,null,null,null,null,null,null,null,-48,null,null,null,null,null,null,null,null,null,null,null,-48]
[null,null,"Directors Lunch",null,null,null,null,null,null,null,null,null,null,null,null,null,null,-10,null,null,null,null,null,null,null,null,null,null,null,-10]
[null,null,"Advertisning-printing & Postage",null,null,null,null,null,null,null,null,null,null,null,null,null,null,-20,null,null,null,null,null,null,null,null,null,null,null,-20]
[null,null,"Extra Prize",null,null,null,null,null,null,null,null,null,null,null,null,null,null,-80,null,null,null,null,null,null,null,null,null,null,null,-80]
[null,null,"Hall Hire £168 pd & charged to prior year",null,null,null,null,null,null,null,null,null,null,null,null,null,null,null,null,null,null,null,null,null,null,null,null,null,null,0]
[null,100753,"Prize Returned",null,40,null,null,null,null,null,null,null,null,null,null,null,null,40,null,null,null,null,null,null,null,null,null,null,null,40]
[null,100754,"League-Isolated Menaces",null,40,null,5,5,null,20,null,10,null,null,null,null,null,null,null,null,null,null,null,null,null,null,null,null,null,40]
[null,null,"League-Trafford Tigers",null,30,null,5,null,null,20,5,null,null,null,null,null,null,null,null,null,null,null,null,null,null,null,null,null,null,30]
[null,null,"League-City Aces",null,69,null,5,5,null,20,5,10,24,null,null,null,null,null,null,null,null,null,null,null,null,null,null,null,null,69]
[null,null,"League-Tempo",null,55,null,5,5,null,20,15,10,null,null,null,null,null,null,null,null,null,null,null,null,null,null,null,null,null,55]
[null,null,"League-New Connections",null,40,null,5,5,null,20,null,10,null,null,null,null,null,null,null,null,null,null,null,null,null,null,null,null,null,40]
[null,null,"League-Inverted Minors",null,50,null,5,5,null,20,10,10,null,null,null,null,null,null,null,null,null,null,null,null,null,null,null,null,null,50]
[null,null,"League-Red Bull",null,40,null,5,5,null,20,null,10,null,null,null,null,null,null,null,null,null,null,null,null,null,null,null,null,null,40]
[null,null,"League-Adlan",null,25,null,5,null,null,20,null,null,null,null,null,null,null,null,null,null,null,null,null,null,null,null,null,null,null,25]
[null,null,"League-Conjurers",null,30,null,5,null,null,20,5,null,null,null,null,null,null,null,null,null,null,null,null,null,null,null,null,null,null,30]
[null,null,"League-Eureka",null,52,null,5,null,12,20,null,null,15,null,null,null,null,null,null,null,null,null,null,null,null,null,null,null,null,52]
["2015-08-01",null,"League-The North Star",null,62,null,5,5,6,20,10,10,6,null,null,null,null,null,null,null,null,null,null,null,null,null,null,null,null,62]
[null,null,"League - The Transfers",null,30,null,5,null,null,20,5,null,null,null,null,null,null,null,null,null,null,null,null,null,null,null,null,null,null,30]
[null,null,"League-Overtrick Lunatics",null,40,null,5,5,null,20,null,10,null,null,null,null,null,null,null,null,null,null,null,null,null,null,null,null,null,40]
[null,null,"League-Radbroke Bandits",null,37,null,5,null,12,20,null,null,null,null,null,null,null,null,null,null,null,null,null,null,null,null,null,null,null,37]
[null,100724,"League-Monton Misfits",null,35,null,5,null,null,20,10,null,null,null,null,null,null,null,null,null,null,null,null,null,null,null,null,null,null,35]
[null,null,"League-Manchester S",null,40,null,5,5,6,20,null,10,-6,null,null,null,null,null,null,null,null,null,null,null,null,null,null,null,null,40]
[null,100725,"League-Grasshoppers",null,30,null,5,null,null,20,5,null,null,null,null,null,null,null,null,null,null,null,null,null,null,null,null,null,null,30]
[null,null,"League-Sedgley",null,62,null,5,5,12,20,5,10,5,null,null,null,null,null,null,null,null,null,null,null,null,null,null,null,null,62]
[null,null,"League-Four Dummies",null,60,null,5,5,null,20,5,10,15,null,null,null,null,null,null,null,null,null,null,null,null,null,null,null,null,60]
[null,100726,"League-Hydrangeas",null,40,null,5,5,null,20,null,10,null,null,null,null,null,null,null,null,null,null,null,null,null,null,null,null,null,40]
[null,null,"League-Uppercut",null,25,null,5,null,null,20,null,null,null,null,null,null,null,null,null,null,null,null,null,null,null,null,null,null,null,25]
[null,null,"League-Cheap Tricks",null,45,null,5,5,null,20,5,10,null,null,null,null,null,null,null,null,null,null,null,null,null,null,null,null,null,45]
[null,100727,"League-Manchester Cardinals",30,null,null,5,null,null,20,5,null,null,null,null,null,null,null,null,null,null,null,null,null,null,null,null,null,null,30]
[null,null,"League-Double Trouble",null,25,null,5,null,12,20,null,null,-12,null,null,null,null,null,null,null,null,null,null,null,null,null,null,null,null,25]
[]
[null,null,"League-Hindsight Convention",null,46,null,5,5,6,20,null,10,null,null,null,null,null,null,null,null,null,null,null,null,null,null,null,null,null,46]
[null,null,"League-Double Diamonds",null,25,null,5,null,null,20,null,null,null,null,null,null,null,null,null,null,null,null,null,null,null,null,null,null,null,25]
[null,null,"League-Bank",null,25,null,5,null,null,20,null,null,null,null,null,null,null,null,null,null,null,null,null,null,null,null,null,null,null,25]
[null,null,"League-Slamtastic",null,25,null,5,null,null,20,null,null,null,null,null,null,null,null,null,null,null,null,null,null,null,null,null,null,null,25]
[null,null,"League-Chorlton Challengers",null,24,null,5,null,null,20,5,null,null,null,null,null,null,null,null,null,null,null,null,null,null,null,-6,null,null,24]
[]
[null,null,"EBU- Jul",null,111.44,111.44,null,null,null,null,null,null,null,null,null,null,null,null,null,null,null,null,null,null,null,null,null,null,null,111.44]
[]
[null,null,"League-Touching the Void",null,25,null,5,null,null,20,null,null,null,null,null,null,null,null,null,null,null,null,null,null,null,null,null,null,null,25]
[null,null,"League-Tricksters",null,40,null,5,5,null,20,null,10,null,null,null,null,null,null,null,null,null,null,null,null,null,null,null,null,null,40]
[null,null,"League-Midland Railway",null,45,null,5,5,null,20,5,10,null,null,null,null,null,null,null,null,null,null,null,null,null,null,null,null,null,45]
[]
[null,100728,"League-The Unconventionals",null,25,null,5,null,null,20,5,null,-5,null,null,null,null,null,null,null,null,null,null,null,null,null,null,null,null,25]
[null,null,"League-Pack Choice",null,25,null,5,null,null,20,null,null,null,null,null,null,null,null,null,null,null,null,null,null,null,null,null,null,null,25]
[null,null,"League-Dash",50,null,null,5,5,null,20,10,10,null,null,null,null,null,null,null,null,null,null,null,null,null,null,null,null,null,50]
[null,100729,"League-Rueful Rabbits",null,25,null,5,null,null,20,null,null,null,null,null,null,null,null,null,null,null,null,null,null,null,null,null,null,null,25]
[null,null,"League-Proteus",null,40,null,5,5,null,20,null,10,null,null,null,null,null,null,null,null,null,null,null,null,null,null,null,null,null,40]
[null,null,"League-Alrincham A",null,45,null,5,5,null,20,5,10,null,null,null,null,null,null,null,null,null,null,null,null,null,null,null,null,null,{"$f":"SUM(F79:AC79)","v":45}]
[null,null,"League-Curry Eaters",null,62,null,5,5,12,20,10,10,null,null,null,null,null,null,null,null,null,null,null,null,null,null,null,null,null,62]
[null,100730,"League-Conquering Hearts",50,null,null,5,5,null,20,20,10,-4,null,null,null,null,null,null,null,null,null,null,null,null,null,-6,null,null,50]
[null,null,"League-Manchester A",null,40,null,5,5,null,20,null,10,null,null,null,null,null,null,null,null,null,null,null,null,null,null,null,null,null,40]
[]
[null,null,"League-Midland Railway-xtra player",null,5,null,null,null,null,null,5,null,null,null,null,null,null,null,null,null,null,null,null,null,null,null,null,null,null,5]
[null,null,"League-Curse of the JS",null,30,null,5,null,24,20,5,null,-24,null,null,null,null,null,null,null,null,null,null,null,null,null,null,null,null,30]
[]
[null,null,"EBU-Aug",null,304.36,304.36,null,null,null,null,null,null,null,null,null,null,null,null,null,null,null,null,null,null,null,null,null,null,null,304.36]
[]
[null,null,"League-Last Minute.Bid",null,25,null,5,null,null,20,null,null,null,null,null,null,null,null,null,null,null,null,null,null,null,null,null,null,null,25]
[null,null,"League-Imps R Us",null,65,null,5,null,36,20,10,null,-6,null,null,null,null,null,null,null,null,null,null,null,null,null,null,null,null,65]
[]
[null,null,"GP Swiss Teams-Prize returned",null,40,null,null,null,null,null,null,null,null,null,null,null,null,40,null,null,null,null,null,null,null,null,null,null,null,40]
[null,null,"League-Cheshire Cheeses",null,102,null,5,5,48,20,20,10,4,null,null,null,null,null,null,null,null,null,null,null,null,null,-10,null,null,102]
[null,null,"League-Bare Bones",null,55,null,5,5,null,20,15,10,null,null,null,null,null,null,null,null,null,null,null,null,null,null,null,null,null,55]
[null,null,"League-Diamond Dames",null,35,null,5,null,null,20,10,null,null,null,null,null,null,null,null,null,null,null,null,null,null,null,null,null,null,35]
[null,null,"League-Agamemnon",null,40,null,5,5,null,20,null,10,null,null,null,null,null,null,null,null,null,null,null,null,null,null,null,null,null,40]
[null,null,"League-New Connections-xtra player",null,5,null,null,null,null,null,5,null,null,null,null,null,null,null,null,null,null,null,null,null,null,null,null,null,null,5]
[null,null,"League-Rejuvenated",null,52,null,5,5,18,20,15,10,11,null,null,null,null,null,null,null,null,null,null,null,null,null,-32,null,null,52]
[null,null,"League-Skaters",null,25,null,5,null,null,20,null,null,null,null,null,null,null,null,null,null,null,null,null,null,null,null,null,null,null,25]
[null,100731,"League-AstraZenaca Stars",null,60,null,5,5,null,20,10,10,10,null,null,null,null,null,null,null,null,null,null,null,null,null,null,null,null,60]
[null,null,"League-Enigmas",null,60,null,5,5,null,20,20,10,null,null,null,null,null,null,null,null,null,null,null,null,null,null,null,null,null,60]
[null,null,"League-3 Reds and a Rebel",null,25,null,5,null,null,20,null,null,null,null,null,null,null,null,null,null,null,null,null,null,null,null,null,null,null,25]
[null,null,"League-Altrincham Z",null,25,null,5,null,null,20,null,null,null,null,null,null,null,null,null,null,null,null,null,null,null,null,null,null,null,25]
[null,100732,"League-The Biddables",null,30,null,5,null,null,20,5,null,null,null,null,null,null,null,null,null,null,null,null,null,null,null,null,null,null,30]
[null,null,"League-Team Mayhem",null,52,null,5,5,12,20,null,10,null,null,null,null,null,null,null,null,null,null,null,null,null,null,null,null,null,52]
[null,null,"League-Winning Ways",null,25,null,5,null,null,20,null,null,null,null,null,null,null,null,null,null,null,null,null,null,null,null,null,null,null,25]
[null,null,"League-Nemesis",null,35,null,5,null,null,20,10,null,null,null,null,null,null,null,null,null,null,null,null,null,null,null,null,null,null,35]
[null,100733,"League-Saint Titus",50,null,null,5,5,null,20,10,10,null,null,null,null,null,null,null,null,null,null,null,null,null,null,null,null,null,50]
[null,null,"League-Farouques Googlies",30,null,null,5,null,null,20,5,null,null,null,null,null,null,null,null,null,null,null,null,null,null,null,null,null,null,30]
[null,null,"League-Splinter Group",40,null,null,5,5,null,20,null,10,null,null,null,null,null,null,null,null,null,null,null,null,null,null,null,null,null,40]
[]
["28/09/2015","Direct","League-Spinning Tops",null,40,null,5,5,null,20,null,10,null,null,null,null,null,null,null,null,null,null,null,null,null,null,null,null,null,40]
[]
["2015-01-10","Direct","EBU-Sep",null,119.84,119.84,null,null,null,null,null,null,null,null,null,null,null,null,null,null,null,null,null,null,null,null,null,null,null,119.84]
["15/10/2015","Direct","EBU-Oct",null,273.77,273.77,null,null,null,null,null,null,null,null,null,null,null,null,null,null,null,null,null,null,null,null,null,null,null,273.77]
[]
["20/10/2015","Direct","League-Affil.Fees-Div2-Curse of the JS",null,24,null,null,null,null,null,null,null,24,null,null,null,null,null,null,null,null,null,null,null,null,null,null,null,null,24]
["27/10/2015","Direct","League-xtra player-last Minute.bid Div 7",null,5,null,null,null,null,null,5,null,null,null,null,null,null,null,null,null,null,null,null,null,null,null,null,null,null,5]
["28/10/2015","Direct","League-xtra players-New Connections",null,10,null,null,null,null,null,null,null,10,null,null,null,null,null,null,null,null,null,null,null,null,null,null,null,null,10]
[]
["2015-03-11",10181,"Autumn Intermediate Pairs",null,196,null,null,null,null,null,null,null,null,null,null,null,null,null,null,null,null,196,null,null,null,null,null,null,null,196]
["2015-03-11","Direct","League-Red Bull Div 2-extra players",null,10,null,null,null,null,null,null,null,10,null,null,null,null,null,null,null,null,null,null,null,null,null,null,null,null,10]
["19/11/2015","Direct","EBU-Nov",null,127.54,127.54,null,null,null,null,null,null,null,null,null,null,null,null,null,null,null,null,null,null,null,null,null,null,null,127.54]
[]
["24/12/2015","Direct","EBU-Dec",null,273,273,null,null,null,null,null,null,null,null,null,null,null,null,null,null,null,null,null,null,null,null,null,null,null,273]
["31/12/2015","Direct","Loan from Treasurer",null,2000,null,null,null,null,null,null,null,null,null,null,null,null,null,null,null,null,null,null,null,null,null,null,null,2000,2000]
[]
["2016-07-01",100734,"Congress Entries",2934.75,855,null,null,null,null,null,null,null,null,null,null,null,null,null,3789.75,null,null,null,null,null,null,null,null,null,null,3789.75]
[null,null,"Commision re book stall",25,null,null,null,null,null,null,null,null,null,null,null,null,null,null,25,null,null,null,null,null,null,null,null,null,null,25]
["2016-07-01",100735,"Congress Entries",null,657.5,null,null,null,null,null,null,null,null,null,null,null,null,null,657.5,null,null,null,null,null,null,null,null,null,null,657.5]
[null,null,"Congress cash entries £ 260, used to pay:",null,null,null,null,null,null,null,null,null,null,null,null,null,null,null,260,null,null,null,null,null,null,null,null,null,null,260]
[null,null,"KC-Transporting tables to Congress",null,null,null,null,null,null,null,null,null,null,null,null,null,null,null,-120,null,null,null,null,null,null,null,null,null,null,-120]
[null,null,"KC-printing",null,null,null,null,null,null,null,null,null,null,null,null,null,null,null,-65,null,null,null,null,null,null,null,null,null,null,-65]
[null,null,"J.Morris-EBU AGM expenses",null,null,null,null,null,null,null,null,null,null,null,null,null,null,null,null,null,null,null,null,null,null,-75,null,null,null,-75]
["2016-07-01",100736,"Congress Entries",null,337.5,null,null,null,null,null,null,null,null,null,null,null,null,null,337.5,null,null,null,null,null,null,null,null,null,null,337.5]
["2016-12-01","Direct","Bounced Chq re Congress (D. Male)",null,-80,null,null,null,null,null,null,null,null,null,null,null,null,null,-80,null,null,null,null,null,null,null,null,null,null,-80]
["19/01/2016",100737,"Congress Entries-Players Progress and KC",196,266,null,null,null,null,null,null,null,null,null,null,null,null,null,null,null,null,null,null,null,462,null,null,null,null,462]
["21/01/2016","Direct","EBU-Jan",null,108.01,108.01,null,null,null,null,null,null,null,null,null,null,null,null,null,null,null,null,null,null,null,null,null,null,null,108.01]
[]
["2016-05-02",100738,"Ben Franks (Dec 2015): net=£41.60",29.6,12]
[null,null,"Entries 41 @£12+1 junior@£6=£498",null,null,null,null,null,null,null,null,null,null,null,null,null,null,null,null,498,null,null,null,null,null,null,null,null,null,498]
[null,null,"1 Manchester affiliation fee=£5",null,null,null,null,null,5,null,null,null,null,null,null,null,null,null,null,null,null,null,null,null,null,null,null,null,null,5]
[null,null,"less expenses:"]
[null,null,"Table money 10.5@£12=£126",null,null,null,null,null,null,null,null,null,null,null,null,null,null,null,null,-126,null,null,null,null,null,null,null,null,null,{"$f":"SUM(F144:AC144)","v":-126}]
[null,null,"Duplimated Boards & Hand records=£25",null,null,null,null,null,null,null,null,null,null,null,null,null,null,null,null,-25,null,null,null,null,null,null,null,null,null,-25]
[null,null,"Directing=£80",null,null,null,null,null,null,null,null,null,null,null,null,null,null,null,null,-80,null,null,null,null,null,null,null,null,null,-80]
[null,null,"Refreshments=£43/Postage & Printing=£7.40",null,null,null,null,null,null,null,null,null,null,null,null,null,null,null,null,-50.4,null,null,null,null,null,null,null,null,null,-50.4]
[null,null,"Prizes=£180",null,null,null,null,null,null,null,null,null,null,null,null,null,null,null,null,-180,null,null,null,null,null,null,null,null,null,-180]
["2016-05-02",100739,"League/Agememnon-extra players",null,5,null,null,null,null,null,10,null,-5,null,null,null,null,null,null,null,null,null,null,null,null,null,null,null,null,5]
["2016-07-02","cash","Gazette cup:",0,0]
[null,null,"cash entries:£80+£80+£75 =£235",null,null,null,null,null,null,null,null,null,null,null,235,null,null,null,null,null,null,null,null,null,null,null,null,null,null,235]
[null,null,"ABC eqpt hire-part payt=£50-chq£30 to follow",null,null,null,null,null,null,null,null,null,null,null,-50,null,null,null,null,null,null,null,null,null,null,null,null,null,null,-50]
[null,null,"Directing:J.Lewis & Gordon B.",null,null,null,null,null,null,null,null,null,null,null,-80,null,null,null,null,null,null,null,null,null,null,null,null,null,null,-80]
[null,null,"Barbara-Milk & paper cups & cutlery",null,null,null,null,null,null,null,null,null,null,null,-114.17,null,null,null,null,null,null,null,null,null,null,null,null,null,null,-114.17]
[null,null,"Difference loaned by Treasurer to pay on day",null,null,null,null,null,null,null,null,null,null,null,null,null,null,null,null,null,null,null,null,null,null,null,null,null,9.17,9.17]
["2016-12-02",100740,"Gazette cup entries",null,560,null,null,null,null,null,null,null,null,null,560,null,null,null,null,null,null,null,null,null,null,null,null,null,null,560]
["18/02/2016","Direct","EBU-Feb",null,267.26,267.26,null,null,null,null,null,null,null,null,null,null,null,null,null,null,null,null,null,null,null,null,null,null,null,267.26]
[]
["2016-01-03",10181,"Cantor Cup-chq entries 12@£7",null,84,null,null,null,null,null,null,null,null,null,null,null,null,null,null,null,null,null,84,null,null,null,null,null,null,84]
["2016-03-03",100741,"League-extra players-£5 each",null,15,null,null,null,null,null,10,null,5,null,null,null,null,null,null,null,null,null,null,null,null,null,null,null,null,15]
[null,null,"Manchester Cardinals/Manchester A/Splinter Gp"]
["2016-10-03",100742,"Congress entries-replacement chq+cash",12.5,80,null,null,null,null,null,null,null,null,null,null,null,null,null,92.5,null,null,null,null,null,null,null,null,null,null,92.5]
["2016-10-03",100743,"G.P.Pairs-net",1203,504]
[null,null,"Income £1782",null,null,null,null,null,null,null,null,null,null,null,null,null,1782,null,null,null,null,null,null,null,null,null,null,null,null,1782]
[null,null,",less £75 refreshments etc",null,null,null,null,null,null,null,null,null,null,null,null,null,-75,null,null,null,null,null,null,null,null,null,null,null,null,-75]
["2016-09-03","Direct","League-extra players-Touching the Void",null,10,null,null,null,null,null,5,null,5,null,null,null,null,null,null,null,null,null,null,null,null,null,null,null,null,10]
["17/03/2016","Direct","EBU-P2P",null,121.73,121.73,null,null,null,null,null,null,null,null,null,null,null,null,null,null,null,null,null,null,null,null,null,null,null,121.73]
[null,"Cash held","League-Hydrangeas",10,null,null,null,null,null,null,10,null,null,null,null,null,null,null,null,null,null,null,null,null,null,null,null,null,null,10]
[null,"Cash held","League-Conquering Hearts-Bal. Paid",4,null,null,null,null,null,null,null,null,4,null,null,null,null,null,null,null,null,null,null,null,null,null,null,null,null,4]
[null,"League Under-payments: £29 included in entries above, plus:"]
[null,"Debtor","Petersfield",null,null,null,5,null,6,20,5,null,-36,null,null,null,null,null,null,null,null,null,null,null,null,null,null,null,null,0]
[null,"Debtor","Bombay Sapphires",null,null,null,5,null,null,20,10,null,-35,null,null,null,null,null,null,null,null,null,null,null,null,null,null,null,null,0]
[null,"Debtor","Adlan",null,null,null,null,null,24,null,null,null,-24,null,null,null,null,null,null,null,null,null,null,null,null,null,null,null,null,0]
[null,"Debtor","Jems",null,null,null,5,null,null,20,null,null,-25,null,null,null,null,null,null,null,null,null,null,null,null,null,null,null,null,0]
[null,"Debtor","Newcomers",null,null,null,5,null,null,20,null,null,-25,null,null,null,null,null,null,null,null,null,null,null,null,null,null,null,null,0]
["Total Income",null,null,{"$f":"SUM(D8:D175)","v":4664.8500000000004},{"$f":"SUM(E8:E175)","v":16240.760000000002},{"$f":"SUM(F8:F167)","v":2383.7800000000002},{"$f":"SUM(G8:G175)","v":335},165,251,1340,350,330,-59,63,550.83000000000004,0,1707,1675,4897.25,36.599999999999994,294,196,84,0,462,-75,0,21,2009.17,20905.609999999997]
[]
["Total Income//Cash",null,null,null,{"$f":"E176+D176","v":20905.61}]
[]
["Expenditure",null,null,{"$f":"Expenses!D192","v":0},{"$f":"Expenses!E192","v":22111.62999999999},{"$f":"Expenses!F192","v":0},{"$f":"Expenses!G192","v":489.6},{"$f":"Expenses!H192","v":0},{"$f":"Expenses!I192","v":0},{"$f":"Expenses!J192","v":50},{"$f":"Expenses!K192","v":0},{"$f":"Expenses!L192","v":672},{"$f":"Expenses!M192","v":45},{"$f":"Expenses!N192","v":0},{"$f":"Expenses!O192","v":505.44},{"$f":"Expenses!P192","v":80},{"$f":"Expenses!Q192","v":1377.1399999999999},{"$f":"Expenses!R192","v":1362.22},{"$f":"Expenses!S192","v":6064.87},{"$f":"Expenses!T192","v":18.759999999999998},{"$f":"Expenses!U192","v":273.7},{"$f":"Expenses!V192","v":189.87},{"$f":"Expenses!W192","v":92.059999999999974},{"$f":"Expenses!X192","v":0},{"$f":"Expenses!Y192","v":239.75},{"$f":"Expenses!AJ192","v":294.89999999999998},{"$f":"Expenses!AV192","v":4.6895820560166612E-13},{"$f":"Expenses!AW192","v":-326},{"$f":"Expenses!AX192","v":2009.17},{"$f":"SUM(F180:AC180)","v":13438.480000000001}]
[]
["Total Expenditure/Cash",null,null,null,{"$f":"E180+D180","v":22111.62999999999}]
[]
["Totals",null,null,null,{"$f":"E178-E182","v":-1206.0199999999895},{"$f":"F176-F180","v":2383.7800000000002},-154.60000000000002,165,251,{"$f":"J176-J180","v":1290},350,{"$f":"L176-L180","v":-342},{"$f":"M176-M180","v":-104},63,45.390000000000043,-80,329.86000000000013,312.77999999999997,-1167.6199999999999,17.839999999999996,20.300000000000011,6.1299999999999955,-8.0599999999999739,0,222.25,-369.9,-4.6895820560166612E-13,347,0]
[]
["Cash Held, not yet banked",null,null,null,{"$f":"D168+D169","v":14}]
[]
["Sundry Creditors-Unpresented Cheques",null,null,null,{"$f":"Expenses!E199","v":2490.65}]
["Other Creditor - EBU license fee for league",null,null,null,{"$f":"Expenses!E191","v":489.6}]
["Transfer from Skipton BS",null,null,null,2000]
[]
["Bank Balance",null,null,14,{"$f":"E184-E186+E188+E190+E189","v":3760.2300000000105}]

{"sheet":"Skipton BS","index":1,"n_rows":9,"n_cols":13,"rows_kept":9,"cut":false,"hidden":false,"merged":[]}
["Skipton Building Society"]
[]
[null,null,null,"2015 - 2016","2014 - 2015","2013 - 2014","2012 - 2013",null,"2011-2012",null,"2010 - 2011",null,"2009 - 2010"]
[]
["Balance B/F",null,null,{"$f":"E9","v":11718.7},{"$f":"F9","v":11718.7},{"$f":"G9","v":11644.18},{"$f":"I9","v":11586.880000000001},null,{"$f":"K9","v":11454.29},null,{"$f":"M9","v":11239.54},null,11000]
["Transfer to NatWest",null,null,-2000]
["Interest",null,null,75,null,74.52,57.3,null,132.59,null,{"$f":"11454.29-M9","v":214.75},null,239.54]
[]
["Total",null,null,{"$f":"SUM(D5:D8)","v":9793.7000000000007},{"$f":"SUM(E5:E8)","v":11718.7},{"$f":"F5+F7","v":11718.7},{"$f":"SUM(G5:G8)","v":11644.18},null,{"$f":"I5+I7","v":11586.880000000001},null,{"$f":"K5+K7","v":11454.29},null,{"$f":"SUM(M5:M8)","v":11239.54}]

{"sheet":"Expenses","index":2,"n_rows":201,"n_cols":51,"rows_kept":201,"cut":false,"hidden":false,"merged":[]}
["Expenditure",null,null,null,null,null,null,null,null,null,null,null,null,null,null,null,null,null,null,null,null,null,null,null,null,null,null,null,null,null,null,null,null,null,null,null,"Travel"]
[null,null,null,null,null,null,null,null,null,null,null,null,null,null,null,null,null,null,null,null,null,null,null,null,null,null,null,null,null,null,null,null,null,null,null,null,"Telephone","Bridge"]
["Date","Cheque No","Details",null,null,null,null,null,null,null,null,null,null,null,null,"Merville","Pairs","Teams",null,null,"Summer ","Autumn",null,null,"Players Progress ","EBU","EBU","MCBA","Retirement","EBU","EBU","Presidents","Derbyshire","NBL","All Counties","EBU","Printing","Stationery &","Handbook","AGM","Youth","Seminars","EBU","Engraving","Camrose","Northern","Room","Outstanding","Prior Year ","Loan from","Totals"]
[null,null,null,"Cash","Bank","EBU","EBU P2P","EBU P2P","EBU","EBU","League & Cup","Higson      ","Over","EBU","Gazette","Goldstone","Green","Green","Manchester","Ben","Intermediate","Intermediate","Cantor Cup","Newcomers","& Kevin Comrie","Tollemache","Corwen","Website","Gifts/","Pachabo","Garden","Cup","Friendly",null,"Super ","Delegate","Postage","Equipment","Expenses","Expenses","Budget",null,"Masterpoints",null,null,"Counties","Bookings","Expenses","Corrections","Treasurer"]
[null,null,null,null,null,"P2P (clubs)","League ","Cup","Affiliates","League",">4 players","Cup & Plate","Payments","BFA","Trophy","Trophy","Points","Points","Congress","Franks","Pairs","Pairs",null,"League","Cups",null,null,"Fees","Presentations","Cup","Cities",null,null,null,"Final","Expenses","Stationery","Insurance",null,null,null,null,null,null,null,"Working","etc for","2014 - 2015"]
[null,null,null,null,null,null,null,null,null,null,null,null,null,null,null,null,null,null,null,null,null,null,null,null,null,null,null,null,null,null,null,null,null,null,null,null,"Bank Fees",null,null,null,null,null,null,null,null,"Group","Next Year"]
["Paid in Prior Year for this year, but omitted as prepayments at 31/03/2015"]
[null,null,"Hire of Hall-paid and charged to prior year-Summer Intermed Pairs",null,null,null,null,null,null,null,null,null,null,null,null,null,null,null,null,null,84,null,null,null,null,null,null,null,null,null,null,null,null,null,null,null,null,null,null,null,null,null,null,null,null,null,null,null,-84,null,{"$f":"SUM(F8:AX8)","v":0}]
[null,null,"Hire of Hall for Swiss Teams £168",null,null,null,null,null,null,null,null,null,null,null,null,null,null,168,null,null,null,null,null,null,null,null,null,null,null,null,null,null,null,null,null,null,null,null,null,null,null,null,null,null,null,null,null,null,-168,null,{"$f":"SUM(F9:AX9)","v":0}]
[null,null,"(also see below -2 deposits@£50 for GP  Swiss Pairs and teams)",null,null,null,null,null,null,null,null,null,null,null,null,null,null,null,null,null,null,null,null,null,null,null,null,null,null,null,null,null,null,null,null,null,null,null,null,null,null,null,null,null,null,null,null,null,null,null,{"$f":"SUM(F10:AX10)","v":0}]
[null,1227,"Chq written last yr, not cashed & left out of a/cs-ABC caretaker Xmas gift",null,20,null,null,null,null,null,null,null,null,null,null,null,null,null,null,null,null,null,null,null,null,null,null,null,20,null,null,null,null,null,null,null,null,null,null,null,null,null,null,null,null,null,null,null,null,null,20]
[null,null,"(Have just left this £20 as current year cost and not done prior year correction)",null,null,null,null,null,null,null,null,null,null,null,null,null,null,null,null,null,null,null,null,null,null,null,null,null,null,null,null,null,null,null,null,null,null,null,null,null,null,null,null,null,null,null,null,null,null,null,0]
["Sundry Debtors & Creditors as at 31st March 2015-see below in yellow",null,null,null,null,null,null,null,null,null,null,null,null,null,null,null,null,null,null,null,null,null,null,null,null,null,null,null,null,null,null,null,null,null,null,null,null,null,null,null,null,null,null,null,null,null,null,-2799.1,null,null,-2799.1]
[null,null,"Sundry Creditors b/f =£2853.10, less league overpayments=£54 in income ss",null,null,null,null,null,null,null,null,null,null,null,null,null,null,null,null,null,null,null,null,null,null,null,null,null,null,null,null,null,null,null,null,null,null,null,null,null,null,null,null,null,null,null,null,null,null,null,0]
[null,null,null,null,null,null,null,null,null,null,null,null,null,null,null,null,null,null,null,null,null,null,null,null,null,null,null,null,null,null,null,null,null,null,null,null,null,null,null,null,null,null,null,null,null,null,null,null,null,null,0]
[null,1236,"J Lewis - GP Pairs Assistant Director",null,65,null,null,null,null,null,null,null,null,null,null,null,null,null,null,null,null,null,null,null,null,null,null,null,null,null,null,null,null,null,null,null,null,null,null,null,null,null,null,null,null,null,null,65,null,null,{"$f":"SUM(F16:AX16)","v":65}]
[null,null,null,null,null,null,null,null,null,null,null,null,null,null,null,null,null,null,null,null,null,null,null,null,null,null,null,null,null,null,null,null,null,null,null,null,null,null,null,null,null,null,null,null,null,null,null,null,null,null,0]
[null,1240,"Manchester Congress 2016 - V&A Deposit, but payment cleared in correct yr",null,500,null,null,null,null,null,null,null,null,null,null,null,null,null,500,null,null,null,null,null,null,null,null,null,null,null,null,null,null,null,null,null,null,null,null,null,null,null,null,null,null,null,null,null,null,null,500]
[null,null,null,null,null,null,null,null,null,null,null,null,null,null,null,null,null,null,null,null,null,null,null,null,null,null,null,null,null,null,null,null,null,null,null,null,null,null,null,null,null,null,null,null,null,null,null,null,null,null,0]
[null,1241,"EBU Insurance",null,71.099999999999994,null,null,null,null,null,null,null,null,null,null,null,null,null,null,null,null,null,null,null,null,null,null,null,null,null,null,null,null,null,null,null,null,71.099999999999994,null,null,null,null,null,null,null,null,null,null,null,null,71.099999999999994]
[null,1241,"EBU Gazette Cup P2P",null,23.8,null,null,null,null,null,null,null,null,null,null,null,null,null,null,null,null,null,null,null,null,null,null,null,null,null,null,null,null,null,null,null,null,null,null,null,null,null,null,null,null,null,null,23.8,null,null,23.8]
[null,null,null,null,null,null,null,null,null,null,null,null,null,null,null,null,null,null,null,null,null,null,null,null,null,null,null,null,null,null,null,null,null,null,null,null,null,null,null,null,null,null,null,null,null,null,null,null,null,null,0]
[null,1243,"Graham Winn - Handbook Costs",null,212.8,null,null,null,null,null,null,null,null,null,null,null,null,null,null,null,null,null,null,null,null,null,null,null,null,null,null,null,null,null,null,null,null,null,null,null,null,null,null,null,null,null,null,212.8,null,null,212.8]
[null,null,null,null,null,null,null,null,null,null,null,null,null,null,null,null,null,null,null,null,null,null,null,null,null,null,null,null,null,null,null,null,null,null,null,null,null,null,null,null,null,null,null,null,null,null,null,null,null,null,0]
[null,1244,"Kath Nelson - Higson Cup & Plate Prizes",null,250,null,null,null,null,null,null,null,null,null,null,null,null,null,null,null,null,null,null,null,null,null,null,null,null,null,null,null,null,null,null,null,null,null,null,null,null,null,null,null,null,null,null,250,null,null,250]
[null,null,null,null,null,null,null,null,null,null,null,null,null,null,null,null,null,null,null,null,null,null,null,null,null,null,null,null,null,null,null,null,null,null,null,null,null,null,null,null,null,null,null,null,null,null,null,null,null,null,0]
[null,1245,"Kath Nelson - 3 x Director's Fees - Higson Cup & Plate",null,240,null,null,null,null,null,null,null,null,null,null,null,null,null,null,null,null,null,null,null,null,null,null,null,null,null,null,null,null,null,null,null,null,null,null,null,null,null,null,null,null,null,null,240,null,null,240]
[null,null,null,null,null,null,null,null,null,null,null,null,null,null,null,null,null,null,null,null,null,null,null,null,null,null,null,null,null,null,null,null,null,null,null,null,null,null,null,null,null,null,null,null,null,null,null,null,null,null,0]
[null,1246,"EBU GP Pairs P2P",null,362,null,null,null,null,null,null,null,null,null,null,null,null,null,null,null,null,null,null,null,null,null,null,null,null,null,null,null,null,null,null,null,null,null,null,null,null,null,null,null,null,null,null,362,null,null,362]
[null,null,null,null,null,null,null,null,null,null,null,null,null,null,null,null,null,null,null,null,null,null,null,null,null,null,null,null,null,null,null,null,null,null,null,null,null,null,null,null,null,null,null,null,null,null,null,null,null,null,0]
[null,1247,"Jean Keen - Higson Cup Engraving 2013 - 2014",null,6.5,null,null,null,null,null,null,null,null,null,null,null,null,null,null,null,null,null,null,null,null,null,null,null,null,null,null,null,null,null,null,null,null,null,null,null,null,null,null,null,null,null,null,6.5,null,null,6.5]
[null,null,null,null,null,null,null,null,null,null,null,null,null,null,null,null,null,null,null,null,null,null,null,null,null,null,null,null,null,null,null,null,null,null,null,null,null,null,null,null,null,null,null,null,null,null,null,null,null,null,0]
[null,1248,"Joan Lewis - Higson Cup & Plate Expenses",null,null,null,null,null,null,null,null,null,null,null,null,null,null,null,null,null,null,null,null,null,null,null,null,null,null,null,null,null,null,null,null,null,null,null,null,null,null,null,null,null,null,null,null,null,null,null,0]
[null,null,null,null,null,null,null,null,null,null,null,null,null,null,null,null,null,null,null,null,null,null,null,null,null,null,null,null,null,null,null,null,null,null,null,null,null,null,null,null,null,null,null,null,null,null,null,null,null,null,0]
[null,null,"Dealing £20",null,null,null,null,null,null,null,null,null,null,null,null,null,null,null,null,null,null,null,null,null,null,null,null,null,null,null,null,null,null,null,null,null,null,null,null,null,null,null,null,null,null,null,null,20,null,null,20]
[null,null,"Hand Records-£16",null,36,null,null,null,null,null,null,null,null,null,null,null,null,null,null,null,null,null,null,null,null,null,null,null,null,null,null,null,null,null,null,null,null,null,null,null,null,null,null,null,null,null,null,16,null,null,16]
[null,null,null,null,null,null,null,null,null,null,null,null,null,null,null,null,null,null,null,null,null,null,null,null,null,null,null,null,null,null,null,null,null,null,null,null,null,null,null,null,null,null,null,null,null,null,null,null,null,null,0]
[null,1249,"EBU Garden Cities Trophy 2015 Entry Fee",null,250,null,null,null,null,null,null,null,null,null,null,null,null,null,null,null,null,null,null,null,null,null,null,null,null,null,250,null,null,null,null,null,null,null,null,null,null,null,null,null,null,null,null,null,null,null,250]
[null,null,null,null,null,null,null,null,null,null,null,null,null,null,null,null,null,null,null,null,null,null,null,null,null,null,null,null,null,null,null,null,null,null,null,null,null,null,null,null,null,null,null,null,null,null,null,null,null,null,0]
[null,1250,"MBC - Higson Cup & Plate Final - Table Hire 21 tables @ £12 per table",null,252,null,null,null,null,null,null,null,null,null,null,null,null,null,null,null,null,null,null,null,null,null,null,null,null,null,null,null,null,null,null,null,null,null,null,null,null,null,null,null,null,null,null,252,null,null,252]
[null,null,null,null,null,null,null,null,null,null,null,null,null,null,null,null,null,null,null,null,null,null,null,null,null,null,null,null,null,null,null,null,null,null,null,null,null,null,null,null,null,null,null,null,null,null,null,null,null,null,0]
[null,1251,"M&CBA - Entry to President's Cup",null,205,null,null,null,null,null,null,null,null,null,null,null,null,null,null,null,null,null,null,null,null,null,null,null,null,null,null,205,null,null,null,null,null,null,null,null,null,null,null,null,null,null,null,null,null,null,205]
[null,null,null,null,null,null,null,null,null,null,null,null,null,null,null,null,null,null,null,null,null,null,null,null,null,null,null,null,null,null,null,null,null,null,null,null,null,null,null,null,null,null,null,null,null,null,null,null,null,null,0]
[null,1252,"Bob Cooke's Leaving Present",null,50,null,null,null,null,null,null,null,null,null,null,null,null,null,null,null,null,null,null,null,null,null,null,null,null,null,null,null,null,null,null,null,null,null,null,null,null,null,null,null,null,null,null,50,null,null,50]
[null,null,null,null,null,null,null,null,null,null,null,null,null,null,null,null,null,null,null,null,null,null,null,null,null,null,null,null,null,null,null,null,null,null,null,null,null,null,null,null,null,null,null,null,null,null,null,null,null,null,0]
[null,1253,"Intermediate Player of the Year - Peter Carey-Yard",null,50,null,null,null,null,null,null,null,null,null,null,null,null,null,null,null,null,null,null,null,null,null,null,null,null,null,null,null,null,null,null,null,null,null,null,null,null,null,null,null,null,null,null,50,null,null,50]
[null,1254,"Player of the Year - John Currie",null,50,null,null,null,null,null,null,null,null,null,null,null,null,null,null,null,null,null,null,null,null,null,null,null,null,null,null,null,null,null,null,null,null,null,null,null,null,null,null,null,null,null,null,50,null,null,{"$f":"SUM(F47:AX47)","v":50}]
[null,null,null,null,null,null,null,null,null,null,null,null,null,null,null,null,null,null,null,null,null,null,null,null,null,null,null,null,null,null,null,null,null,null,null,null,null,null,null,null,null,null,null,null,null,null,null,null,null,null,0]
[null,1255,"Irene Davies - League Prizes - Glasses",null,750,null,null,null,null,null,null,null,null,null,null,null,null,null,null,null,null,null,null,null,null,null,null,null,null,null,null,null,null,null,null,null,null,null,null,null,null,null,null,null,null,null,null,750,null,null,750]
[null,null,null,null,null,null,null,null,null,null,null,null,null,null,null,null,null,null,null,null,null,null,null,null,null,null,null,null,null,null,null,null,null,null,null,null,null,null,null,null,null,null,null,null,null,null,null,null,null,null,0]
[null,1256,"Joan Hinchliffe - Treasurer's Expenses",null,35,null,null,null,null,null,null,null,null,null,null,null,null,null,null,null,null,null,null,null,null,null,null,null,null,null,null,null,null,null,null,null,null,null,null,null,null,null,null,null,null,null,null,35,null,null,35]
[null,null,null,null,null,null,null,null,null,null,null,null,null,null,null,null,null,null,null,null,null,null,null,null,null,null,null,null,null,null,null,null,null,null,null,null,null,null,null,null,null,null,null,null,null,null,null,null,null,null,0]
[null,1257,"MBC - Hire of Room - Pachabo Team Selection",null,50,null,null,null,null,null,null,null,null,null,null,null,null,null,null,null,null,null,null,null,null,null,null,null,null,50,null,null,null,null,null,null,null,null,null,null,null,null,null,null,null,null,null,null,null,null,50]
[null,null,null,null,null,null,null,null,null,null,null,null,null,null,null,null,null,null,null,null,null,null,null,null,null,null,null,null,null,null,null,null,null,null,null,null,null,null,null,null,null,null,null,null,null,null,null,null,null,null,0]
[null,1258,"Sid Travers - EBU Half  Yearly Meeting",null,184.9,null,null,null,null,null,null,null,null,null,null,null,null,null,null,null,null,null,null,null,null,null,null,null,null,null,null,null,null,null,null,184.9,null,null,null,null,null,null,null,null,null,null,null,null,null,null,184.9]
[null,null,null,null,null,null,null,null,null,null,null,null,null,null,null,null,null,null,null,null,null,null,null,null,null,null,null,null,null,null,null,null,null,null,null,null,null,null,null,null,null,null,null,null,null,null,null,null,null,null,0]
[null,1259,"Jeff Morris -EBU Half Yearly Meeting",null,53.55,null,null,null,null,null,null,null,null,null,null,null,null,null,null,null,null,null,null,null,null,null,null,null,null,null,null,null,null,null,null,53.55,null,null,null,null,null,null,null,null,null,null,null,null,null,null,53.55]
[null,null,null,null,null,null,null,null,null,null,null,null,null,null,null,null,null,null,null,null,null,null,null,null,null,null,null,null,null,null,null,null,null,null,null,null,null,null,null,null,null,null,null,null,null,null,null,null,null,null,0]
[null,1260,"Barbara Lewis - Summer Intermediate Pairs",null,189.7,null,null,null,null,null,null,null,null,null,null,null,null,null,null,null,null,null,null,null,null,null,null,null,null,null,null,null,null,null,null,null,null,null,null,null,null,null,null,null,null,null,null,null,null,null,0]
[null,null,"Cash Income used to re-imburse BL",null,null,null,null,null,null,null,null,null,null,null,null,null,null,null,null,null,-56,null,null,null,null,null,null,null,null,null,null,null,null,null,null,null,null,null,null,null,null,null,null,null,null,null,null,null,null,null,-56]
[]
[null,null,"Director-J Lewis",null,null,null,null,null,null,null,null,null,null,null,null,null,null,null,null,null,45,null,null,null,null,null,null,null,null,null,null,null,null,null,null,null,null,null,null,null,null,null,null,null,null,null,null,null,null,null,45]
[null,null,"ABC-hire of tables and bidding boxes",null,null,null,null,null,null,null,null,null,null,null,null,null,null,null,null,null,20,null,null,null,null,null,null,null,null,null,null,null,null,null,null,null,null,null,null,null,null,null,null,null,null,null,null,null,null,null,20]
[null,null,"Postage",null,null,null,null,null,null,null,null,null,null,null,null,null,null,null,null,null,3.24,null,null,null,null,null,null,null,null,null,null,null,null,null,null,null,null,null,null,null,null,null,null,null,null,null,null,null,null,null,3.24]
[null,null,"Duplimated Boards and 60 hand records",null,null,null,null,null,null,null,null,null,null,null,null,null,null,null,null,null,12,null,null,null,null,null,null,null,null,null,null,null,null,null,null,null,null,null,null,null,null,null,null,null,null,null,null,null,null,null,12]
[null,null,"Refreshments",null,null,null,null,null,null,null,null,null,null,null,null,null,null,null,null,null,13.5,null,null,null,null,null,null,null,null,null,null,null,null,null,null,null,null,null,null,null,null,null,null,null,null,null,null,null,null,null,13.5]
[null,null,"Sweets",null,null,null,null,null,null,null,null,null,null,null,null,null,null,null,null,null,10,null,null,null,null,null,null,null,null,null,null,null,null,null,null,null,null,null,null,null,null,null,null,null,null,null,null,null,null,null,10]
[null,null,"!st Prizes-2@£30/pair",null,null,null,null,null,null,null,null,null,null,null,null,null,null,null,null,null,60,null,null,null,null,null,null,null,null,null,null,null,null,null,null,null,null,null,null,null,null,null,null,null,null,null,null,null,null,null,60]
[null,null,"2nd Prizes-2@£20/pair",null,null,null,null,null,null,null,null,null,null,null,null,null,null,null,null,null,40,null,null,null,null,null,null,null,null,null,null,null,null,null,null,null,null,null,null,null,null,null,null,null,null,null,null,null,null,null,40]
[null,null,"2x 3rd and 2x 4th prizes:",null,null,null,null,null,null,null,null,null,null,null,null,null,null,null,null,null,null,null,null,null,null,null,null,null,null,null,null,null,null,null,null,null,null,null,null,null,null,null,null,null,null,null,null,null,null,null,0]
[null,null,"4 wine",null,null,null,null,null,null,null,null,null,null,null,null,null,null,null,null,null,24,null,null,null,null,null,null,null,null,null,null,null,null,null,null,null,null,null,null,null,null,null,null,null,null,null,null,null,null,null,24]
[null,null,"4 chocolates",null,null,null,null,null,null,null,null,null,null,null,null,null,null,null,null,null,17.96,null,null,null,null,null,null,null,null,null,null,null,null,null,null,null,null,null,null,null,null,null,null,null,null,null,null,null,null,null,17.96]
[null,null,null,null,null,null,null,null,null,null,null,null,null,null,null,null,null,null,null,null,null,null,null,null,null,null,null,null,null,null,null,null,null,null,null,null,null,null,null,null,null,null,null,null,null,null,null,null,null,null,0]
[null,1261,"Ian Mitchel-InterCounties Entry Fees",null,180,null,null,null,null,null,null,null,null,null,null,null,null,null,null,null,null,null,null,null,null,null,null,null,null,null,null,null,null,null,180,null,null,null,null,null,null,null,null,null,null,null,null,null,null,null,180]
[null,1262,"Bob Cooke - £50 gift for Treasurer leaving/£27.33-wine for AGM",null,77.33,null,null,null,null,null,null,null,null,null,null,null,null,null,null,null,null,null,null,null,null,null,null,null,50,null,null,null,null,null,null,null,null,null,null,27.33,null,null,null,null,null,null,null,null,null,null,77.33]
[null,1263,"Chq destroyed",null,null,null,null,null,null,null,null,null,null,null,null,null,null,null,null,null,null,null,null,null,null,null,null,null,null,null,null,null,null,null,null,null,null,null,null,null,null,null,null,null,null,null,null,null,null,null,0]
[null,1264,"GPS Teams-David Stephenson-Directing",null,172.5,null,null,null,null,null,null,null,null,null,null,null,null,172.5,null,null,null,null,null,null,null,null,null,null,null,null,null,null,null,null,null,null,null,null,null,null,null,null,null,null,null,null,null,null,null,null,172.5]
[null,1265,"GPS Teams-Joan Lewis Asst Director+Printing",null,78,null,null,null,null,null,null,null,null,null,null,null,null,78,null,null,null,null,null,null,null,null,null,null,null,null,null,null,null,null,null,null,null,null,null,null,null,null,null,null,null,null,null,null,null,null,78]
[null,1266,"GPS Teams-ABC-Loan of Equipment & duplimating",null,128,null,null,null,null,null,null,null,null,null,null,null,null,128,null,null,null,null,null,null,null,null,null,null,null,null,null,null,null,null,null,null,null,null,null,null,null,null,null,null,null,null,null,null,null,null,{"$f":"SUM(F79:AX79)","v":128}]
[null,1267,"GPS Teams-Rhona Goldenfield-Prizes",null,440,null,null,null,null,null,null,null,null,null,null,null,null,440,null,null,null,null,null,null,null,null,null,null,null,null,null,null,null,null,null,null,null,null,null,null,null,null,null,null,null,null,null,null,null,null,440]
[null,1268,"Irene Davies-EBU meeting expenses",null,56.45,null,null,null,null,null,null,null,null,null,null,null,null,null,null,null,null,null,null,null,null,null,null,null,null,null,null,null,null,null,null,56.45,null,null,null,null,null,null,null,null,null,null,null,null,null,null,56.45]
[null,1269,"Mike Newman-Engraving trophies for Ben Franks& Gazette Cup",null,16,null,null,null,null,null,null,null,null,null,12,null,null,null,null,4,null,null,null,null,null,null,null,null,null,null,null,null,null,null,null,null,null,null,null,null,null,null,null,null,null,null,null,null,null,null,16]
["2015-11-08",1270,"EBU-Pachabo Cup",null,206,null,null,null,null,null,null,null,null,null,null,null,null,null,null,null,null,null,null,null,null,null,null,null,null,206,null,null,null,null,null,null,null,null,null,null,null,null,null,null,null,null,null,null,null,null,206]
["15/08/2015",1271,"EBU_Corwen Trophy",null,368,null,null,null,null,null,null,null,null,null,null,null,null,null,null,null,null,null,null,null,null,null,368,null,null,null,null,null,null,null,null,null,null,null,null,null,null,null,null,null,null,null,null,null,null,null,368]
[null,null,null,null,null,null,null,null,null,null,null,null,null,null,null,null,null,null,null,null,null,null,null,null,null,null,null,null,null,null,null,null,null,null,null,null,null,null,null,null,null,null,null,null,null,null,null,null,null,null,0]
["2015-10-09",1272,"Goldstone Cup Prize Money",null,80,null,null,null,null,null,null,null,null,null,null,80,null,null,null,null,null,null,null,null,null,null,null,null,null,null,null,null,null,null,null,null,null,null,null,null,null,null,null,null,null,null,null,null,null,null,80]
["2015-03-10",1273,"St Peters PCC(inv 1046) -Room Hire for Intermediate Pairs on 12/06/2016",null,92,null,null,null,null,null,null,null,null,null,null,null,null,null,null,null,null,null,null,null,null,null,null,null,null,null,null,null,null,null,null,null,null,null,null,null,null,null,null,null,null,null,92,null,null,null,92]
["2015-03-10",1274,"St Peters PCC(inv 1045) -Room Hire for Gazette Cup on 07/02/2016",null,138,null,null,null,null,null,null,null,null,null,138,null,null,null,null,null,null,null,null,null,null,null,null,null,null,null,null,null,null,null,null,null,null,null,null,null,null,null,null,null,null,null,null,null,null,null,138]
["2015-03-10",1275,"Tollemache (Rodney Lighton) - Tollemache 8@£50expenses+NPC £90.45",null,490.45,null,null,null,null,null,null,null,null,null,null,null,null,null,null,null,null,null,null,null,null,490.45,null,null,null,null,null,null,null,null,null,null,null,null,null,null,null,null,null,null,null,null,null,null,null,null,490.45]
["2015-03-10",1276,"EBU-Tollemache entry fees 2015/16",null,416,null,null,null,null,null,null,null,null,null,null,null,null,null,null,null,null,null,null,null,null,416,null,null,null,null,null,null,null,null,null,null,null,null,null,null,null,null,null,null,null,null,null,null,null,null,416]
["2015-03-10",1277,"StPetersPCC - Room Hire for Intermediate Pairs on 01/11/2015",null,92,null,null,null,null,null,null,null,null,null,null,null,null,null,null,null,null,92,null,null,null,null,null,null,null,null,null,null,null,null,null,null,null,null,null,null,null,null,null,null,null,null,null,null,null,null,92]
["2015-03-10",1278,"League-City Aces refund-H. Weinstock",null,24,null,null,null,null,null,null,null,24,null,null,null,null,null,null,null,null,null,null,null,null,null,null,null,null,null,null,null,null,null,null,null,null,null,null,null,null,null,null,null,null,null,null,null,null,null,24]
["2015-03-10",1279,"League-Eureka refund-A.Morris",null,15,null,null,null,null,null,null,null,15,null,null,null,null,null,null,null,null,null,null,null,null,null,null,null,null,null,null,null,null,null,null,null,null,null,null,null,null,null,null,null,null,null,null,null,null,null,15]
["2015-03-10",1280,"League-   refund-M. Hart",null,6,null,null,null,null,null,null,null,6,null,null,null,null,null,null,null,null,null,null,null,null,null,null,null,null,null,null,null,null,null,null,null,null,null,null,null,null,null,null,null,null,null,null,null,null,null,6]
["2015-05-10",1281,"MBC-re-imurse for equipment for Manchester University Club",null,200,null,null,null,null,null,null,null,null,null,null,null,null,null,null,null,null,null,null,null,null,null,null,null,null,null,null,null,null,null,null,null,null,null,null,null,200,null,null,null,null,null,null,null,null,null,200]
["2015-05-10",1282,"MBC-hosting Derbyshire Match on 05/07/2015",null,375.3,null,null,null,null,null,null,null,null,null,null,null,null,null,null,null,null,null,null,null,null,null,null,null,null,null,null,null,375.3,null,null,null,null,null,null,null,null,null,null,null,null,null,null,null,null,null,375.3]
["2015-05-10",1283,"Jeff Morris-expenses re Northern Counties Working Gp.",null,60,null,null,null,null,null,null,null,null,null,null,null,null,null,null,null,null,null,null,null,null,null,null,null,null,null,null,null,null,null,null,null,null,null,null,null,null,null,null,null,null,60,null,null,null,null,60]
[null,null,null,null,null,null,null,null,null,null,null,null,null,null,null,null,null,null,null,null,null,null,null,null,null,null,null,null,null,null,null,null,null,null,null,null,null,null,null,null,null,null,null,null,null,null,null,null,null,null,0]
["14/11/2015",1284,"V&A Hotel-deposit for Manchester Congress 2017",null,500,null,null,null,null,null,null,null,null,null,null,null,null,null,null,null,null,null,null,null,null,null,null,null,null,null,null,null,null,null,null,null,null,null,null,null,null,null,null,null,null,null,500,null,null,null,500]
["14/11/2015",1285,"EBU inv568047 dated11/08/15 for green-pointed event",null,375.72,null,null,null,null,null,null,null,null,null,null,null,null,375.72,null,null,null,null,null,null,null,null,null,null,null,null,null,null,null,null,null,null,null,null,null,null,null,null,null,null,null,null,null,null,null,null,375.72]
["14/11/2015",1286,"EBU inv.568046-League 2014-15 Div 1-6 P2P",null,380.8,null,null,null,null,null,null,null,null,null,null,null,null,null,null,null,null,null,null,null,null,null,null,null,null,null,null,null,null,null,null,null,null,null,null,null,null,null,null,null,null,null,null,380.8,null,null,380.8]
["14/11/2015",1287,"Rodney Lighton for extra Tollemache expenses 8@£25",null,200,null,null,null,null,null,null,null,null,null,null,null,null,null,null,null,null,null,null,null,null,200,null,null,null,null,null,null,null,null,null,null,null,null,null,null,null,null,null,null,null,null,null,null,null,null,200]
["14/11/2015",1288,"Michael Byrne for engraving for Congress",null,12,null,null,null,null,null,null,null,null,null,null,null,null,null,12,null,null,null,null,null,null,null,null,null,null,null,null,null,null,null,null,null,null,null,null,null,null,null,null,null,null,null,null,null,null,null,12]
[null,null,null,null,null,null,null,null,null,null,null,null,null,null,null,null,null,null,null,null,null,null,null,null,null,null,null,null,null,null,null,null,null,null,null,null,null,null,null,null,null,null,null,null,null,null,null,null,null,null,0]
["14/11/2015",1289,"net payment to Barbara Lewis re Autumn Intermediate Pairs",null,97.87,null,null,null,null,null,null,null,null,null,null,null,null,null,null,null,null,null,null,null,null,null,null,null,null,null,null,null,null,null,null,null,null,null,null,null,null,null,null,null,null,null,null,null,null,null,0]
[null,null," Cash Income - 26@ £7",null,null,null,null,null,null,null,null,null,null,null,null,null,null,null,null,null,null,-182,null,null,null,null,null,null,null,null,null,null,null,null,null,null,null,null,null,null,null,null,null,null,null,null,null,null,null,null,-182]
[null,null,"Direector-Joan Lewis",null,null,null,null,null,null,null,null,null,null,null,null,null,null,null,null,null,null,45,null,null,null,null,null,null,null,null,null,null,null,null,null,null,null,null,null,null,null,null,null,null,null,null,null,null,null,null,45]
[null,null,"Hire of Equipment",null,null,null,null,null,null,null,null,null,null,null,null,null,null,null,null,null,null,20,null,null,null,null,null,null,null,null,null,null,null,null,null,null,null,null,null,null,null,null,null,null,null,null,null,null,null,null,20]
[null,null,"Caretaker Gratuity",null,null,null,null,null,null,null,null,null,null,null,null,null,null,null,null,null,null,10,null,null,null,null,null,null,null,null,null,null,null,null,null,null,null,null,null,null,null,null,null,null,null,null,null,null,null,null,10]
[null,null,"Duplimated Boards & hand records-JL",null,null,null,null,null,null,null,null,null,null,null,null,null,null,null,null,null,null,12,null,null,null,null,null,null,null,null,null,null,null,null,null,null,null,null,null,null,null,null,null,null,null,null,null,null,null,null,12]
[null,null,"Refreshments",null,null,null,null,null,null,null,null,null,null,null,null,null,null,null,null,null,null,28.75,null,null,null,null,null,null,null,null,null,null,null,null,null,null,null,null,null,null,null,null,null,null,null,null,null,null,null,null,{"$f":"SUM(F111:AX111)","v":28.75}]
[null,null,"Stationery/Printing",null,null,null,null,null,null,null,null,null,null,null,null,null,null,null,null,null,null,1,null,null,null,null,null,null,null,null,null,null,null,null,null,null,null,null,null,null,null,null,null,null,null,null,null,null,null,null,1]
[null,null,"Postage",null,null,null,null,null,null,null,null,null,null,null,null,null,null,null,null,null,null,2.16,null,null,null,null,null,null,null,null,null,null,null,null,null,null,null,null,null,null,null,null,null,null,null,null,null,null,null,null,2.16]
[null,null,"Prizes-2@£40/2@£20/2@2 bottles wine/2@2boxes chocs.",null,null,null,null,null,null,null,null,null,null,null,null,null,null,null,null,null,null,160.96,null,null,null,null,null,null,null,null,null,null,null,null,null,null,null,null,null,null,null,null,null,null,null,null,null,null,null,null,160.96]
[null,null,null,null,null,null,null,null,null,null,null,null,null,null,null,null,null,null,null,null,null,null,null,null,null,null,null,null,null,null,null,null,null,null,null,null,null,null,null,null,null,null,null,null,null,null,null,null,null,null,0]
["2015-05-12",1290,"M.Byrne-seminar for County C Team",null,250,null,null,null,null,null,null,null,null,null,null,null,null,null,null,null,null,null,null,null,null,null,null,null,null,null,null,null,null,null,null,null,null,null,null,null,null,250,null,null,null,null,null,null,null,null,250]
["2015-05-12",1291,"MBC-Room hire for C team seminar",null,50,null,null,null,null,null,null,null,null,null,null,null,null,null,null,null,null,null,null,null,null,null,null,null,null,null,null,null,null,null,null,null,null,null,null,null,null,50,null,null,null,null,null,null,null,null,50]
["2015-09-12",1292,"V & A hotel - Manchester Congress 2016",null,2839,null,null,null,null,null,null,null,null,null,null,null,null,null,2839,null,null,null,null,null,null,null,null,null,null,null,null,null,null,null,null,null,null,null,null,null,null,null,null,null,null,null,null,null,null,null,2839]
["2015-09-12",1293,"B.Lewis re Congress",null,null,null,null,null,null,null,null,null,null,null,null,null,null,null,null,null,null,null,null,null,null,null,null,null,null,null,null,null,null,null,null,null,null,null,null,null,null,null,null,null,null,null,null,null,null,null,0]
[null,null,"Engraving £84/Stationery £44.72/Postage £12.96",null,141.68,null,null,null,null,null,null,null,null,null,null,null,null,null,141.68,null,null,null,null,null,null,null,null,null,null,null,null,null,null,null,null,null,null,null,null,null,null,null,null,null,null,null,null,null,null,null,141.68]
["26/12/2015",1294,"V&A-par parking for Congress/7@£8",null,112,null,null,null,null,null,null,null,null,null,null,null,null,null,112,null,null,null,null,null,null,null,null,null,null,null,null,null,null,null,null,null,null,null,null,null,null,null,null,null,null,null,null,null,null,null,112]
[null,null,null,null,null,null,null,null,null,null,null,null,null,null,null,null,null,null,null,null,null,null,null,null,null,null,null,null,null,null,null,null,null,null,null,null,null,null,null,null,null,null,null,null,null,null,null,null,null,null,0]
["2016-07-01",1295,"(Irene)-",null,621,null,null,null,null,null,null,null,null,null,null,null,null,null,396,null,null,null,null,null,null,225,null,null,null,null,null,null,null,null,null,null,null,null,null,null,null,null,null,null,null,null,null,null,null,null,621]
[null,null,"Tollemache £225 re £25 allowance each",null,null,null,null,null,null,null,null,null,null,null,null,null,null,null,null,null,null,null,null,null,null,null,null,null,null,null,null,null,null,null,null,null,null,null,null,null,null,null,null,null,null,null,null,null,null,null,0]
[null,null,"Congress £396 re V7A hire of magaphone £60 and £336 teas and coffees",null,null,null,null,null,null,null,null,null,null,null,null,null,null,null,null,null,null,null,null,null,null,null,null,null,null,null,null,null,null,null,null,null,null,null,null,null,null,null,null,null,null,null,null,null,null,null,0]
["2016-07-01",1296,"cheque destroyed",null,null,null,null,null,null,null,null,null,null,null,null,null,null,null,null,null,null,null,null,null,null,null,null,null,null,null,null,null,null,null,null,null,null,null,null,null,null,null,null,null,null,null,null,null,null,null,0]
["2016-07-01",1297,"S.Triggs-Prizes £45.75/equipment Hire from Larkhill £20",null,65.75,null,null,null,null,null,null,null,null,null,null,null,null,null,null,null,null,null,null,null,65.75,null,null,null,null,null,null,null,null,null,null,null,null,null,null,null,null,null,null,null,null,null,null,null,null,null,65.75]
["2016-07-01",1298,"Haidee-Repayment of loan to Treasurer",null,2000,null,null,null,null,null,null,null,null,null,null,null,null,null,null,null,null,null,null,null,null,null,null,null,null,null,null,null,null,null,null,null,null,null,null,null,null,null,null,null,null,null,null,null,null,2000,2000]
["2016-07-01",1299,"J.Lewis-Congress (Players Progress and Kevin Comrie section):",null,134,null,null,null,null,null,null,null,null,null,null,null,null,null,null,null,null,null,null,null,134,null,null,null,null,null,null,null,null,null,null,null,null,null,null,null,null,null,null,null,null,null,null,null,null,null,134]
[null,null,"Directing £60/Hand Records £8/Altrincham Equpmnt£50/dealing Boards£16",null,null,null,null,null,null,null,null,null,null,null,null,null,null,null,null,null,null,null,null,null,null,null,null,null,null,null,null,null,null,null,null,null,null,null,null,null,null,null,null,null,null,null,null,null,null,null,0]
["2016-07-01",1300,"cheque destroyed",null,null,null,null,null,null,null,null,null,null,null,null,null,null,null,null,null,null,null,null,null,null,null,null,null,null,null,null,null,null,null,null,null,null,null,null,null,null,null,null,null,null,null,null,null,null,null,0]
["2016-07-01",1301,"M & S Amos-Congress:",null,744.32,null,null,null,null,null,null,null,null,null,null,null,null,null,744.32,null,null,null,null,null,null,null,null,null,null,null,null,null,null,null,null,null,null,null,null,null,null,null,null,null,null,null,null,null,null,null,744.32]
[null,null,"Directing £450/Travel £57.12/Meals £118/Boards and Hand Records £119.20",null,null,null,null,null,null,null,null,null,null,null,null,null,null,null,null,null,null,null,null,null,null,null,null,null,null,null,null,null,null,null,null,null,null,null,null,null,null,null,null,null,null,null,null,null,null,null,0]
["2016-10-01",1302,"G. Wynne-directing Congress (Player Cup and KC Cup",null,40,null,null,null,null,null,null,null,null,null,null,null,null,null,null,null,null,null,null,null,40,null,null,null,null,null,null,null,null,null,null,null,null,null,null,null,null,null,null,null,null,null,null,null,null,null,40]
["15/01/2016",1303,"B.Lewis-Congress Prizes £1350",null,1024,null,null,null,null,null,null,null,null,null,null,null,null,null,1350,null,null,null,null,null,null,null,null,null,null,null,null,null,null,null,null,null,null,null,null,null,null,null,null,null,null,null,null,null,null,null,{"$f":"SUM(F135:AX135)","v":1350}]
[null,null," less tea and coffee receipts £226",null,null,null,null,null,null,null,null,null,null,null,null,null,null,null,-226,null,null,null,null,null,null,null,null,null,null,null,null,null,null,null,null,null,null,null,null,null,null,null,null,null,null,null,null,null,null,null,{"$f":"SUM(F136:AX136)","v":-226}]
[null,null,"less Prize donated by Jeff Morris for Juniors-£100",null,null,null,null,null,null,null,null,null,null,null,null,null,null,null,-100,null,null,null,null,null,null,null,null,null,null,null,null,null,null,null,null,null,null,null,null,null,null,null,null,null,null,null,null,null,null,null,-100]
["23/01/2016",1304,"St. Peters PCC-Room Hire 05/03/16 GP Pairs £184/ and 24/07/16 GP teams",null,268,null,null,null,null,null,null,null,null,null,null,null,184,null,null,null,null,null,null,null,null,null,null,null,null,null,null,null,null,null,null,null,null,null,null,null,null,null,null,null,null,null,184,null,-100,null,268]
[null,null,"£184 less £100 deposit paid",null,null,null,null,null,null,null,null,null,null,null,null,null,null,null,null,null,null,null,null,null,null,null,null,null,null,null,null,null,null,null,null,null,null,null,null,null,null,null,null,null,null,null,null,null,null,null,0]
["23/01/2016",1305,"St. Peters PCC Room Hire-deposit for Swiss teams and Pairs in 2017",null,100,null,null,null,null,null,null,null,null,null,null,null,null,null,null,null,null,null,null,null,null,null,null,null,null,null,null,null,null,null,null,null,null,null,null,null,null,null,null,null,null,null,100,null,null,null,100]
["25/01/2016",1306,"Jim Straffon Congress entry refund for him and Eleanor Price",null,35,null,null,null,null,null,null,null,null,null,null,null,null,null,35,null,null,null,null,null,null,null,null,null,null,null,null,null,null,null,null,null,null,null,null,null,null,null,null,null,null,null,null,null,null,null,35]
[]
["2016-03-02",1307,"D.Youles-Gazette Cup refreshments",null,287,null,null,null,null,null,null,null,null,null,287,null,null,null,null,null,null,null,null,null,null,null,null,null,null,null,null,null,null,null,null,null,null,null,null,null,null,null,null,null,null,null,null,null,null,null,287]
["2016-03-02",1308,"O.Burgess-Tollemache 8 @ £25 expenses",null,200,null,null,null,null,null,null,null,null,null,null,null,null,null,null,null,null,null,null,null,null,200,null,null,null,null,null,null,null,null,null,null,null,null,null,null,null,null,null,null,null,null,null,null,null,null,200]
["2016-03-02",1309,"I.Davies-Tollemache-expenses for NPC",null,34.950000000000003,null,null,null,null,null,null,null,null,null,null,null,null,null,null,null,null,null,null,null,null,34.950000000000003,null,null,null,null,null,null,null,null,null,null,null,null,null,null,null,null,null,null,null,null,null,null,null,null,34.950000000000003]
["2016-11-02",1310,"A.Thornton-Gazette Cup-caretaker gratuity",null,10,null,null,null,null,null,null,null,null,null,10,null,null,null,null,null,null,null,null,null,null,null,null,null,null,null,null,null,null,null,null,null,null,null,null,null,null,null,null,null,null,null,null,null,null,null,10]
["2016-11-02",1311,"S.Triggs-Engraving",null,12,null,null,null,null,null,null,null,null,null,null,null,null,null,null,null,null,null,null,null,null,null,null,null,null,null,null,null,null,null,null,null,null,null,null,null,null,null,null,12,null,null,null,null,null,null,12]
["2016-11-02",1312,"J.Lewis-Gzette Cup-equipment hire from ABC",null,30,null,null,null,null,null,null,null,null,null,30,null,null,null,null,null,null,null,null,null,null,null,null,null,null,null,null,null,null,null,null,null,null,null,null,null,null,null,null,null,null,null,null,null,null,null,30]
["2016-11-02",1313,"I.Davies-Engraving: Congress £9.95 & Cantor Cup £11.90",null,21.85,null,null,null,null,null,null,null,null,null,null,null,null,null,9.9499999999999993,null,null,null,11.9,null,null,null,null,null,null,null,null,null,null,null,null,null,null,null,null,null,null,null,null,null,null,null,null,null,null,null,21.85]
["17/02/2016",1314,"D.Stevenson-GP pairs on 05/03/16-directing",null,177,null,null,null,null,null,null,null,null,null,null,null,177,null,null,null,null,null,null,null,null,null,null,null,null,null,null,null,null,null,null,null,null,null,null,null,null,null,null,null,null,null,null,null,null,null,177]
["17/02/2016",1315,"J.Lewis-GP pairs-directing/printing/caretaker tip",null,80,null,null,null,null,null,null,null,null,null,null,null,80,null,null,null,null,null,null,null,null,null,null,null,null,null,null,null,null,null,null,null,null,null,null,null,null,null,null,null,null,null,null,null,null,null,80]
["17/02/2016",1316,"ABC-GP Pairs-Hire Equipment & Duplimated Boards",null,126,null,null,null,null,null,null,null,null,null,null,null,126,null,null,null,null,null,null,null,null,null,null,null,null,null,null,null,null,null,null,null,null,null,null,null,null,null,null,null,null,null,null,null,null,null,126]
["17/02/2016",1317,"Rhona G. - GP pairs-Prizes",null,440,null,null,null,null,null,null,null,null,null,null,null,440,null,null,null,null,null,null,null,null,null,null,null,null,null,null,null,null,null,null,null,null,null,null,null,null,null,null,null,null,null,null,null,null,null,440]
[]
["2016-02-03",1318,"B. Lewis-Cantor Cup-net payment=£80.16:",null,80.16]
[null,null,"Cash Entry Fees=28@£7+8@£3.50",null,null,null,null,null,null,null,null,null,null,null,null,null,null,null,null,null,null,null,-234,null,null,null,null,null,null,null,null,null,null,null,null,null,null,null,null,null,null,null,null,null,null,null,null,null,null,null,-234]
[null,null,"Donations=1@£100/2@£30/trophies=£20",null,null,null,null,null,null,null,null,null,null,null,null,null,null,null,null,null,null,null,-150,null,null,null,null,null,null,null,null,null,null,null,null,null,null,null,null,null,null,null,null,null,null,null,null,null,null,null,-150]
[null,null,"Hire MBC-12 tables@£12",null,null,null,null,null,null,null,null,null,null,null,null,null,null,null,null,null,null,null,144,null,null,null,null,null,null,null,null,null,null,null,null,null,null,null,null,null,null,null,null,null,null,null,null,null,null,null,144]
[null,null,"Director-Joan Lewis",null,null,null,null,null,null,null,null,null,null,null,null,null,null,null,null,null,null,null,45,null,null,null,null,null,null,null,null,null,null,null,null,null,null,null,null,null,null,null,null,null,null,null,null,null,null,null,45]
[null,null,"Duplimated boards and hand records",null,null,null,null,null,null,null,null,null,null,null,null,null,null,null,null,null,null,null,13,null,null,null,null,null,null,null,null,null,null,null,null,null,null,null,null,null,null,null,null,null,null,null,null,null,null,null,13]
[null,null,"Printing/Stationery",null,null,null,null,null,null,null,null,null,null,null,null,null,null,null,null,null,null,null,2,null,null,null,null,null,null,null,null,null,null,null,null,null,null,null,null,null,null,null,null,null,null,null,null,null,null,null,2]
[null,null,"Postage",null,null,null,null,null,null,null,null,null,null,null,null,null,null,null,null,null,null,null,13.16,null,null,null,null,null,null,null,null,null,null,null,null,null,null,null,null,null,null,null,null,null,null,null,null,null,null,null,13.16]
[null,null,"Refreshments",null,null,null,null,null,null,null,null,null,null,null,null,null,null,null,null,null,null,null,82,null,null,null,null,null,null,null,null,null,null,null,null,null,null,null,null,null,null,null,null,null,null,null,null,null,null,null,82]
[null,null,"Prizes=£100+£30+£13+£11+£11",null,null,null,null,null,null,null,null,null,null,null,null,null,null,null,null,null,null,null,165,null,null,null,null,null,null,null,null,null,null,null,null,null,null,null,null,null,null,null,null,null,null,null,null,null,null,null,165]
["2016-08-03",1319,"A.Thorton-printing",null,3.3,null,null,null,null,null,null,null,null,null,null,null,null,null,null,null,null,null,null,null,null,null,null,null,null,null,null,null,null,null,null,null,3.3,null,null,null,null,null,null,null,null,null,null,null,null,null,3.3]
["24/03/2016",1320,"R.Lighton-website expenses",null,71.84,null,null,null,null,null,null,null,null,null,null,null,null,null,null,null,null,null,null,null,null,null,null,71.84,null,null,null,null,null,null,null,null,null,null,null,null,null,null,null,null,null,null,null,null,null,null,71.84]
[null,1321,"cheque destroyed",null,null,null,null,null,null,null,null,null,null,null,null,null,null,null,null,null,null,null,null,null,null,null,null,null,null,null,null,null,null,null,null,null,null,null,null,null,null,null,null,null,null,null,null,null,null,null,0]
["24/03/2016",1322,"EBU-Ben Franks P2P",null,14.76,null,null,null,null,null,null,null,null,null,null,null,null,null,null,14.76,null,null,null,null,null,null,null,null,null,null,null,null,null,null,null,null,null,null,null,null,null,null,null,null,null,null,null,null,null,null,14.76]
["31/03/2016","Direct","Bank Charges",null,20,null,null,null,null,null,null,null,null,null,null,null,null,null,null,null,null,null,null,null,null,null,null,null,null,null,null,null,null,null,null,null,20,null,null,null,null,null,null,null,null,null,null,null,null,null,20]
["31/03/2016","Direct","Difference on Bank Rec.",null,-0.4,null,null,null,null,null,null,null,null,null,null,null,null,null,null,null,null,null,null,null,null,null,null,null,null,null,null,null,null,null,null,null,-0.4,null,null,null,null,null,null,null,null,null,null,null,null,null,-0.4]
["Creditors-Post yr-end cheques written relating to 2015/2016 year:"]
["2016-05-04",1323,"K.Nelson - Cup Prizes",null,250,null,null,null,null,null,null,250,null,null,null,null,null,null,null,null,null,null,null,null,null,null,null,null,null,null,null,null,null,null,null,null,null,null,null,null,null,null,null,null,null,null,null,null,null,null,250]
["2016-10-04",1326,"J.Lewis-Plate final-directing",null,80,null,null,null,null,null,null,80,null,null,null,null,null,null,null,null,null,null,null,null,null,null,null,null,null,null,null,null,null,null,null,null,null,null,null,null,null,null,null,null,null,null,null,null,null,null,80]
["2016-10-04",1327,"J.Smith - Cup directing",null,80,null,null,null,null,null,null,80,null,null,null,null,null,null,null,null,null,null,null,null,null,null,null,null,null,null,null,null,null,null,null,null,null,null,null,null,null,null,null,null,null,null,null,null,null,null,80]
["2016-10-04",1328,"ABC-Cup & Plate Finals:Hand records£16/Duplimating Brds £30",null,46,null,null,null,null,null,null,46,null,null,null,null,null,null,null,null,null,null,null,null,null,null,null,null,null,null,null,null,null,null,null,null,null,null,null,null,null,null,null,null,null,null,null,null,null,null,46]
["19/4/2016",1329,"MBC-Cup & Plate Finals: 18 tables@£12",null,216,null,null,null,null,null,null,216,null,null,null,null,null,null,null,null,null,null,null,null,null,null,null,null,null,null,null,null,null,null,null,null,null,null,null,null,null,null,null,null,null,null,null,null,null,null,216]
["2016-10-04",1330,"S.Davies: NBL-4 teams @ £75",null,300,null,null,null,null,null,null,null,null,null,null,null,null,null,null,null,null,null,null,null,null,null,null,null,null,null,null,null,null,300,null,null,null,null,null,null,null,null,null,null,null,null,null,null,null,null,{"$f":"SUM(F177:AX177)","v":300}]
["2016-07-05",1331,"Expert Player of Year-Michael Newman",null,50,null,null,null,null,null,null,null,null,null,null,null,null,null,null,null,null,null,null,null,null,null,null,null,50,null,null,null,null,null,null,null,null,null,null,null,null,null,null,null,null,null,null,null,null,null,50]
["2016-07-05",1332," Joint Intermediate POY- Graham Campbell",null,25,null,null,null,null,null,null,null,null,null,null,null,null,null,null,null,null,null,null,null,null,null,null,null,25,null,null,null,null,null,null,null,null,null,null,null,null,null,null,null,null,null,null,null,null,null,25]
["2016-07-05",1333,"Joint Intermediate POY - George Leigh",null,25,null,null,null,null,null,null,null,null,null,null,null,null,null,null,null,null,null,null,null,null,null,null,null,25,null,null,null,null,null,null,null,null,null,null,null,null,null,null,null,null,null,null,null,null,null,25]
["2016-07-05",1334,"I.Davies-engraving 3 trophies for POY",null,19.5,null,null,null,null,null,null,null,null,null,null,null,null,null,null,null,null,null,null,null,null,null,null,null,19.5,null,null,null,null,null,null,null,null,null,null,null,null,null,null,null,null,null,null,null,null,null,19.5]
["2016-07-05",1335,"H.Tattersall-repayt of cash provided for Gazette Cup",null,9.17,null,null,null,null,null,null,null,null,null,null,null,null,null,null,null,null,null,null,null,null,null,null,null,null,null,null,null,null,null,null,null,null,null,null,null,null,null,null,null,null,null,null,null,null,9.17,{"$f":"SUM(F182:AX182)","v":9.17}]
["18/05/2016",1336,"EBU Inv 574886-Congress License Fees",null,250.92,null,null,null,null,null,null,null,null,null,null,null,null,null,250.92,null,null,null,null,null,null,null,null,null,null,null,null,null,null,null,null,null,null,null,null,null,null,null,null,null,null,null,null,null,null,null,{"$f":"SUM(F183:AX183)","v":250.92}]
["18/05/2016",1337,"EBU inv 578684-License Fees Gazette=£28.44/League Div 7 last year=£61.20",null,89.64,null,null,null,null,null,null,null,null,null,28.44,null,null,null,null,null,null,null,null,null,null,null,null,null,null,null,null,null,null,null,null,null,null,null,null,null,null,null,null,null,null,null,null,35.200000000000003,26,null,89.64]
["18/05/2016",1339,"EBU inv.580623-License Fees GP Pairs on 5/03/16",null,370.14,null,null,null,null,null,null,null,null,null,null,null,370.14,null,null,null,null,null,null,null,null,null,null,null,null,null,null,null,null,null,null,null,null,null,null,null,null,null,null,null,null,null,null,null,null,null,370.14]
["18/05/2016",1340,"EBU inv.580977 - License Fees-Garden Cities final",null,260,null,null,null,null,null,null,null,null,null,null,null,null,null,null,null,null,null,null,null,null,null,null,null,null,null,260,null,null,null,null,null,null,null,null,null,null,null,null,null,null,null,null,null,null,null,260]
["21/05/2016",1342,"League cup engraving",null,50,null,null,null,null,50,null,null,null,null,null,null,null,null,null,null,null,null,null,null,null,null,null,null,null,null,null,null,null,null,null,null,null,null,null,null,null,null,null,null,null,null,null,null,null,null,50]
["22/05/2016",1343,"Treasurers Expenses-2015/16-postage",null,22.68,null,null,null,null,null,null,null,null,null,null,null,null,null,null,null,null,null,null,null,null,null,null,null,null,null,null,null,null,null,null,null,22.68,null,null,null,null,null,null,null,null,null,null,null,null,null,22.68]
["22/05/2016",1344,"EBU inv. - Garden Cities Final",null,260,null,null,null,null,null,null,null,null,null,null,null,null,null,null,null,null,null,null,null,null,null,null,null,null,null,260,null,null,null,null,null,null,null,null,null,null,null,null,null,null,null,null,null,null,null,260]
[null,null,"Other creditors:"]
[null,null,"Estimated EBU license fee for League 2015/16",null,489.6,null,489.6,null,null,null,null,null,null,null,null,null,null,null,null,null,null,null,null,null,null,null,null,null,null,null,null,null,null,null,null,null,null,null,null,null,null,null,null,null,null,null,null,null,null,null,{"$f":"SUM(F191:AX191)","v":489.6}]
["Total Expenditure",null,null,{"$f":"SUM(D7:D191)","v":0},{"$f":"SUM(E7:E191)","v":22111.62999999999},{"$f":"SUM(F7:F191)","v":0},489.6,0,0,50,0,672,45,0,505.44,80,1377.1399999999999,1362.22,6064.87,18.759999999999998,273.7,189.87,{"$f":"SUM(W7:W191)","v":92.059999999999974},0,239.75,1566.4,368,71.84,189.5,256,770,205,375.3,300,180,294.89999999999998,45.58,71.099999999999994,0,27.33,200,300,0,12,0,60,876,4.6895820560166612E-13,-326,2009.17,19312.529999999992]
[]
["Cash",null,null,null,{"$f":"D192","v":0},null,null,null,null,null,null,null,null,null,null,null,null,null,null,null,null,null,null,null,null,null,null,null,null,null,null,null,null,null,null,null,null,null,null,null,null,null,null,null,null,null,null,null,null,"add:op. bals",{"$f":"2853.1-54","v":2799.1}]
[null,null,null,null,null,null,null,null,null,null,null,null,null,null,null,null,null,null,null,null,null,null,null,null,null,null,null,null,null,null,null,null,null,null,null,null,null,null,null,null,null,null,null,null,null,null,null,null,null,null,{"$f":"AY192+AY194","v":22111.62999999999}]
["Total Expenditure",null,null,null,{"$f":"E192+E194","v":22111.62999999999},null,null,null,null,null,null,null,null,null,null,null,null,null,null,null,null,null,null,null,null,null,null,null,null,null,null,null,null,null,null,null,null,null,null,null,null,null,null,null,null,null,null,null,null,"differene",{"$f":"E192-AY195","v":0}]
[]
["Creditors:"]
["Cheques not presented",null,"See above",null,{"$f":"E166+E168+E172+E173+E174+E175+E176+E177+E178+E179+E180+E181+E182+E183+E184+E185+E186+E187+E188+E189","v":2490.65}]
["Creditor-EBU League License fee-see above",null,null,null,{"$f":"E191","v":489.6}]
[null,null,null,null,null,null,null,null,null,489.6]

{"sheet":"Balance Sheet","index":3,"n_rows":26,"n_cols":15,"rows_kept":26,"cut":false,"hidden":false,"merged":[]}
["Manchester County Bridge Association"]
["Balance Sheet as at 31st March 2015"]
[]
[null,null,"2015-2016","2014 - 2015","2013 - 2014",null,"2012 - 2013",null,"2011 -2012",null,"2010 - 2011",null,"2009-2010",null,"2008-2009"]
[]
["Trophies",null,834,834,834,null,834,null,834,null,834,null,834,null,834]
["P.A.System ",null,0,0,0,null,67,null,167,null,267,null,267,null,267]
[]
["Fixed Assets",null,{"$f":"C6+C7","v":834},{"$f":"D6+D7","v":834},{"$f":"SUM(E6:E8)","v":834},null,901,null,{"$f":"SUM(I6:I7)","v":1001},null,{"$f":"SUM(K6:K7)","v":1101},null,{"$f":"SUM(M6:M8)","v":1101},null,{"$f":"SUM(O6:O8)","v":1101}]
[]
["Bank Reserve Account - Skipton BS",null,{"$f":"'Skipton BS'!D9","v":9793.7000000000007},11718.7,11644.18,null,11560.36,null,11586.88,null,11454.29,null,11239.54,null,11000]
["Current Account",null,{"$f":"Income!E192","v":3760.2300000000105},3826.78,5774.25,null,8402.66,null,6779.46,null,4030.93,null,4246.38,null,2717.03]
["Cash in Hand",null,14,0,0,null,0,null,0,null,0,null,{"$f":"[1]Income!D137","v":0},null,200]
["Sundry Debtors - note 18",null,{"$f":"'Closing Debtors & Creditors'!E69","v":1055},116.2,0,null,0,null,0,null,{"$f":"6+81","v":87},null,500,null,100]
["Sundry Creditors - note 19",null,{"$f":"-'Closing Debtors & Creditors'!E56","v":-3055.25},-2853.1,-2886.06,null,-2707.6300000000006,null,-2181.2399999999998,null,{"$f":"-([1]Income!F138)","v":0},null,-1301.6199999999999,null,-441.5]
[]
["Total Current Assets",null,{"$f":"SUM(C11:C16)","v":11567.680000000011},{"$f":"SUM(D11:D16)","v":12808.580000000002},{"$f":"SUM(E11:E16)","v":14532.37},null,{"$f":"SUM(G11:G16)","v":17255.39},null,{"$f":"SUM(I11:I16)","v":16185.1},null,{"$f":"SUM(K11:K15)","v":15572.220000000001},null,{"$f":"SUM(M11:M16)","v":14684.300000000003},null,{"$f":"SUM(O11:O16)","v":13575.53}]
[]
["Net Assets",null,{"$f":"C9+C17","v":12401.680000000011},{"$f":"D9+D17","v":13642.580000000002},{"$f":"E9+E17","v":15366.37},null,{"$f":"G9+G17","v":18156.39},null,{"$f":"I9+I17","v":17186.099999999999},null,{"$f":"K9+K17","v":16673.22},null,{"$f":"M9+M17","v":15785.300000000003},null,{"$f":"O9+O17","v":14676.53}]
[]
["Reserves Brought Forward",null,{"$f":"D24","v":13642.580000000002},{"$f":"E24","v":15366.37},{"$f":"G24","v":18156.39},0,17186.100000000002,0,14942.670000000004,0,15785.300000000003,0,14676.53,null,13331.5]
["Surplus/Deficit for the Year",null,{"$f":"'Income & Expenditure (2)'!D50","v":-1240.8999999999992},{"$f":"D19-D21","v":-1723.7899999999991},{"$f":"E19-E21","v":-2790.0199999999986},null,{"$f":"G19-G21","v":970.28999999999724},{"$f":"H19-H21","v":0},2243.4299999999998,{"$f":"J19-J21","v":0},-842.63,{"$f":"L19-L21","v":0},{"$f":"M19-M21","v":1108.7700000000023},{"$f":"N19-N21","v":0},{"$f":"O19-O21","v":1345.0300000000007}]
[]
["Reserves Carried Forward",null,{"$f":"SUM(C21:C23)","v":12401.680000000002},{"$f":"SUM(D21:D23)","v":13642.580000000002},{"$f":"SUM(E21:E23)","v":15366.37},null,{"$f":"SUM(G21:G23)","v":18156.39},null,{"$f":"SUM(I21:I23)","v":17186.100000000002},null,{"$f":"K21+K22","v":14942.670000000004},null,{"$f":"M21+M22","v":15785.300000000003},null,{"$f":"O21+O22","v":14676.53}]
[]
[null,"Difference",{"$f":"C19-C24","v":0}]

{"sheet":"Closing Debtors & Creditors","index":4,"n_rows":69,"n_cols":5,"rows_kept":69,"cut":false,"hidden":false,"merged":[]}
["C"]
[null,null,"1. Prior Year Adjustments"]
[]
[null,"A)","Prepayments, not accrued:"]
[null,null,"Room Bookings per note 18 of 2014-2015 Accounts:"]
[null,null,"GP Teams - July 2015",168]
[null,null,"Intermediate Pairs-Summer 2015",84]
[null,null,"GP Teams - July 2016 - deposit",50]
[null,null,"GP Pairs - March 2016 - deposit",50]
[null,null,"Total",{"$f":"SUM(D6:D9)","v":352},"positive"]
[]
[null,"B)","Additional receipts for 2014-15 league, not in prior yr. creditors"]
[null,null,"Davenport - 2 extra players",10]
[null,null,"City Aces - Extra Player & Affiliation fee",11]
[null,null,"Total",{"$f":"SUM(D13:D14)","v":21},"positive"]
[]
[null,"C)","Additional cost re prior-year League"]
[null,null,"Provision made for EBU license fee for League 2014-15 in last yr. creditors",416]
[null,null,"Actual charge levied",442]
[null,null,"Additional cost, not provided",{"$f":"D19-D18","v":26},"negative"]
[]
[null,null,"Net Effect - deducted from expenses for 2015-16",{"$f":"D20-D15-D10","v":-347}]
[]
[]
[null,null,"2. Creditors"]
[]
[null,"a)","Creditors (\"unpresented chqs\")-written after 31/03/2016 for 2015-16 expenses"]
[]
["24/03/2016",1320,"R.Lighton-website expenses",null,71.84]
[null,1321,"cheque destroyed"]
["24/03/2016",1322,"EBU-Ben Franks P2P",null,14.76]
["2016-05-04",1323,"K.Nelson - Cup Prizes",null,250]
["2016-10-04",1326,"J.Lewis-Plate final-directing",null,80]
["2016-10-04",1327,"J.Smith - Cup directing",null,80]
["2016-10-04",1328,"ABC-Cup & Plate Finals:Hand records£16/Duplimating Brds £30",null,46]
["19/4/2016",1329,"MBC-Cup & Plate Finals: 18 tables@£12",null,216]
["2016-10-04",1330,"S.Davies: NBL-4 teams @ £75",null,300]
["2016-07-05",1331,"Expert Player of Year-Michael Newman",null,50]
["2016-07-05",1332," Joint Intermediate POY- Graham Campbell",null,25]
["2016-07-05",1333,"Joint Intermediate POY - George Leigh",null,25]
["2016-07-05",1334,"I.Davies-engraving 3 trophies for POY",null,19.5]
["2016-07-05",1335,"H.Tattersall-repayt of cash provided for Gazette Cup",null,9.17]
["18/05/2016",1336,"EBU Inv 574886-Congress License Fees",null,250.92]
["18/05/2016",1337,"EBU inv 578684-License Fees Gazette=£28.44/League Div 7 last year=£61.20",null,89.64]
["18/05/2016",1339,"EBU inv.580623-License Fees GP Pairs on 5/03/16",null,370.14]
["18/05/2016",1340,"EBU inv.580977 - License Fees-Garden Cities final",null,260]
["21/05/2016",1342,"League cup engraving",null,50]
["22/05/2016",1343,"Treasurers Expenses-2015/16-postage",null,22.68]
["22/05/16",1344,"EBU-Garden Cities Final",null,260]
[null,null,"Total",null,{"$f":"SUM(E29:E49)","v":2490.65}]
[]
[null,"b)","Other Creditors"]
[null,null,"Estimated EBU license fee for League 2015/16",null,489.6]
[null,null,"League Overpaymentss-see League calculations sheet",null,{"$f":"'League Calculations'!B82","v":75}]
[]
[null,null,"Total Creditors",null,{"$f":"E50+E53+E54","v":3055.25}]
[]
[null,null,"Debtors and Prepayments"]
[]
[null,"a)","Prepaid Room Bookings for 2016-17"]
[null,null,"Summer Int. Pairs 2015",92]
[null,null,"GP Pairs 2016",50]
[null,null,"GP Teams 2016",{"$f":"184+50","v":234}]
[null,null,"Manchester Congress Deposit",500]
[null,null,"Total Prepayments",{"$f":"SUM(D61:D64)","v":876}]
[]
[null,"b)","Debtors-League Underpayments-see League calculations sheet",{"$f":"'League Calculations'!B70","v":179}]
[]
[null,null,"Total Debtors and Prepayments",null,{"$f":"D65+D67","v":1055}]

{"sheet":"Opening Debtors & Creditors","index":5,"n_rows":48,"n_cols":4,"rows_kept":48,"cut":false,"hidden":false,"merged":[]}
["Manchester County Bridge Association"]
[]
["Sundry Creditors as at 31st March 2015"]
[]
[1236,"Asst Director - J Lewis (GP Pairs)",null,65]
[]
[1241,"EBU Gazette Cup P2P",null,23.8]
[]
[1246,"EBU GP Pairs P2P",null,362]
[]
[1243,"Graham Winn - Handbook Expenses",null,212.8]
[]
[1244,"K Nelson - Higson Cup & Plate Prizes",null,250]
[]
[1245,"K Nelson - Higson Cup & Plate - 3 x Directors Fees",null,240]
[]
[1247,"Jean Keen - Higson Cup Engraving",null,6.5]
[]
[1248,"Joan Lewis - Higson Cup & Plate Expenses"]
[null,"Dealing",null,20]
[null,"Hand Records",null,16]
[]
[1250,"MBC - Higson Cup & Plate - Table Hire - 21 tables @ £12 per table",null,252]
[]
[1252,"Bob Cooke Leaving Present",null,50]
[]
[1254,"Player of the Year - John Currie",null,50]
[1253,"Intermediate Player of the Year",null,50]
[]
[1255,"League Winners Glasses",null,750]
[]
[null,"League Overpayments",null,54]
[]
[null,"EBU Licence Fee - League 2014 - 2015",null,416]
[]
[1256,"Treasurer's Expenses",null,35]
[]
[null,"Sundry Creditors Total 2014 - 2015",null,{"$f":"SUM(D5:D37)","v":2853.1}]
[]
["Sundry Debtors as at 31st March 2015"]
[]
[null,"EBU P2P March",null,93.52]
[null,"EBU P2P July 2014 Correction",null,22.68]
[]
[null,"Sundry Debtors Total as at 31st March 2015",null,{"$f":"SUM(D42:D44)","v":116.19999999999999}]
[]
[]
[null,"Some provisions were not made - please see details at the top of the sheet on closing balances"]

{"sheet":"Income & Expenditure (2)","index":6,"n_rows":54,"n_cols":4,"rows_kept":54,"cut":false,"hidden":false,"merged":[]}
["Manchester County Bridge Association"]
["Income & Expenditure as at 31st March 2015"]
[]
["Income","Note",null,"2015-2016"]
[]
["EBU P2P Clubs",null,null,{"$f":"Income!F176","v":2383.7800000000002}]
["Affiliation Fees ",null,null,{"$f":"Income!I176","v":251}]
["Bridge For All",null,null,{"$f":"Income!N176","v":63}]
["Manchester League",1,null,{"$f":"'Notes 2015-16'!E14","v":1290}]
["Manchester League P2P",2,null,{"$f":"'Notes 2015-16'!E26","v":-154.60000000000008}]
["Higson Memorial Cup & Plate",3,null,{"$f":"'Notes 2015-16'!E42","v":-342}]
["Higson Memorial Cup & Plate P2P",4,null,{"$f":"'Notes 2015-16'!E55","v":165}]
["Extra Players Fees in League & Cup ",null,null,{"$f":"Income!K176","v":350}]
["Gazette Trophy ",5,null,{"$f":"'Notes 2015-16'!E73","v":45.389999999999986}]
["Merville Goldstone Cup (Pachabo Qualifier)",null,null,{"$f":"Income!P184","v":-80}]
["Green Point Pairs",6,null,{"$f":"'Notes 2015-16'!E93","v":329.86000000000013}]
["Green Point Teams",7,null,{"$f":"'Notes 2015-16'!E112","v":312.77999999999997}]
["Manchester Congress",8,null,{"$f":"'Notes 2015-16'!E126","v":-945.36999999999989}]
["Ben Franks",9,null,{"$f":"'Notes 2015-16'!E145","v":17.840000000000032}]
["Summer Intermediate Pairs",10,null,{"$f":"'Notes 2015-16'!E165","v":20.300000000000011}]
["Autumn Intermediate Pairs",11,null,{"$f":"'Notes 2015-16'!E187","v":6.1300000000000523}]
["Cantor Cup ",12,null,{"$f":"'Notes 2015-16'!E215","v":-8.0600000000000023}]
["Interest Skipton Building Society 2014 - 2015",null,null,75]
[]
["Total Income",null,null,{"$f":"SUM(D6:D24)","v":3780.0500000000006}]
[]
["Expenses"]
[]
["Northern Bridge League (NBL)",null,null,{"$f":"Expenses!AH192","v":300}]
["All Counties Super Final",null,null,{"$f":"Expenses!AI192","v":180}]
["Derbyshire Friendly",null,null,{"$f":"Expenses!AG192","v":375.3}]
["Representative Competitions/Matches",13,null,{"$f":"'Notes 2015-16'!E227","v":3165.4}]
["Northern Counties Working Group",null,null,{"$f":"Expenses!AT192","v":60}]
["Youth Budget",14,null,{"$f":"Expenses!AO192","v":200}]
["Handbook Expenses",null,null,{"$f":"Expenses!AM192","v":0}]
["EBU Delegate Expenses",null,null,{"$f":"-Income!Z184","v":369.9}]
["Trophy Engraving/Trophy Repairs",null,null,{"$f":"Expenses!AR192","v":12}]
["Printing/Postage/Stationery/Telephone/Travel",null,null,{"$f":"Expenses!AK192","v":45.58}]
["Retirement Gifts/Presentations/Receptions",15,null,{"$f":"'Notes 2015-16'!E252","v":189.5}]
["Bridge stationery & equipment",null,null,0]
["Equipment Insurance",null,null,{"$f":"Expenses!AL192","v":71.099999999999994}]
["Seminars",16,null,{"$f":"Expenses!AP192","v":300}]
["Web Site Costs",null,null,{"$f":"Expenses!AB192","v":71.84}]
["AGM Expenses",null,null,{"$f":"Expenses!AN192","v":27.33}]
["Prepaid last year",17,null,{"$f":"'Closing Debtors & Creditors'!D22","v":-347}]
["Depreciation",null,null,0]
[]
["Total Expenses",null,null,{"$f":"SUM(D29:D47)","v":5020.95}]
[]
["Surplus/Deficit of Income over Expenditure",null,null,{"$f":"D25-D48","v":-1240.8999999999992}]
[]
["Current Assets Balance from last year",null,null,{"$f":"'Balance Sheet'!D19","v":13642.580000000002}]
[]
["Total Current Assets",null,null,{"$f":"SUM(D50:D53)","v":12401.680000000002}]

{"sheet":"Notes 2015-16","index":7,"n_rows":287,"n_cols":5,"rows_kept":287,"cut":false,"hidden":false,"merged":[]}
["Manchester County Bridge Association"]
["Notes to the Accounts for the year ended 31st March 2016"]
[]
["Note",null,null,null,"2015/16"]
[]
[1,"Manchester League 2014 - 2015"]
[]
[null,"Income"]
[]
[null,"67  Teams @ £20 , plus 1 free",null,null,{"$f":"Income!J176","v":1340}]
[]
[null,"Engraving League Cup",null,null,50]
[]
[null,"Profit/Loss",null,null,{"$f":"E10-E12","v":1290}]
[]
[2,"Manchester League P2P"]
[]
[null,"Income"]
[]
[null,"67 Teams * £5 , plus 1 free",null,null,{"$f":"Income!G176","v":335}]
[]
[null,"Expenses"]
[]
[null,"Estimated P2P charge from EBU, 68 teams)",null,null,{"$f":"'League Calculations'!D44","v":489.60000000000008}]
[null,"     see sheet  of League Calculations"]
[null,"Profit/Loss",null,null,{"$f":"E20-E24","v":-154.60000000000008}]
[]
[3,"Higson Memorial Cup & Plate "]
[]
[null,"Gross Receipts (33 teams @ £10), plus 2 free",null,null,{"$f":"Income!L176","v":330}]
[]
[null,"Expenses"]
[]
[null,"Prizes",null,null,250]
[null,"Director's Fees",null,null,160]
[null,"Room Hire",null,null,216]
[null,"Engraving",null,null,0]
[null,"Duplimating & Copying Hands - ABC",null,null,46]
[]
[null,"Expenses Total",null,null,{"$f":"SUM(E34:E38)","v":672}]
[]
[null,"Profit/Loss",null,null,{"$f":"E30-E40","v":-342}]
[]
[4,"Higson Memorial Cup & Plate P2P"]
[]
[]
[null,"Income"]
[]
[null,"33 Teams x £5",null,null,{"$f":"Income!H176","v":165}]
[]
[null,"Expenses"]
[]
[null,"Estimated P2P charge from EBU",null,null,0]
[]
[null,"Profit/Loss",null,null,{"$f":"E49-E53","v":165}]
[]
["5","Gazette Trophy - Feb."]
[]
[null,"Gross Receipts ",null,null,{"$f":"Income!O156+Income!O151","v":795}]
[]
[null,"Hire of Hall",null,null,{"$f":"Expenses!O88","v":138}]
[null,"Tournament Director",null,null,80]
[null,"Hire of Equipment - Altrincham Bridge Club",null,null,80]
[null,"Refreshments for Players ",null,null,{"$f":"Expenses!O143","v":287}]
[null,"Paper Plates etc & wine prizes",null,null,34.17]
[null,"Intermediate Cup",null,null,12]
[null,"Caretaker gratuity",null,null,10]
[null,"EBU Masterpoints",null,null,28.44]
[null,"Prizes",null,null,80]
[]
[null,"Expenses Total",null,null,{"$f":"SUM(E61:E70)","v":749.61}]
[]
[null,"Net Receipts",null,null,{"$f":"E59-SUM(E61:E70)","v":45.389999999999986}]
[]
[6,"Manchester Green Points Pairs - March"]
[]
[null,"Gross Receipts ",null,null,{"$f":"Income!Q164","v":1782}]
[null,"(98 players + 2 juniors)"]
[null,"Hire of Hall",null,null,184]
[null,"Director ",null,null,177]
[null,"Assistant Director / Printing",null,null,80]
[null,"Hire of Tables plus boards - Altrincham Bridge Club",null,null,126]
[null,"EBU - One Day Event ",null,null,370.14]
[null,"Refreshments for Players",null,null,75]
[null,"Sandwiches for Director"]
[null,"Paper Cloths"]
[null,"Prizes",null,null,440]
[null,"Gratuity"]
[null,"Printing, Postage etc"]
[]
[null,"Total Expenses",null,null,{"$f":"SUM(E79:E90)","v":1452.1399999999999}]
[]
[null,"Net Receipts",null,null,{"$f":"E77-E91","v":329.86000000000013}]
[]
[7,"Manchester Green Points Teams - July"]
[]
[null,"Gross Receipts ",null,null,1800]
[]
[null,"Director - D Stevenson",null,null,172.5]
[null,"Director - J Lewis",null,null,78]
[null,"Altrincham Bridge Club-equipment & boards",null,null,128]
[null,"Prizes",null,null,440]
[null,"Wine Prizes",null,null,48]
[null,"Hire of Hall",null,null,168]
[null,"Sandwiches for Directors",null,null,10]
[null,"Tea, coffee and biscuits",null,null,47]
[null,"EBU Licence Fee",null,null,375.72]
[null,"Printing flyers & Posters",null,null,20]
[]
[null,"Total Expenses",null,null,{"$f":"SUM(E99:E109)","v":1487.22}]
[]
[null,"Net Receipts",null,null,{"$f":"E97-E110","v":312.77999999999997}]
[]
[8,"Manchester Congress"]
[]
[null,"Gross Receipts "]
[null,"Main event",null,null,{"$f":"Income!S176","v":4897.25}]
[null,"Players Progress & Kevin Comrie events",null,null,{"$f":"Income!Y176","v":462}]
[null,"Total Income",null,null,{"$f":"SUM(E117:E118)","v":5359.25}]
[]
[null,"Expenses (See file= Congress 2016))"]
[null,"Main Event",null,null,{"$f":"Income!S180","v":6064.87}]
[null,"Players Progress & Kevin Comrie events",null,null,{"$f":"Income!Y180","v":239.75}]
[null,"Total Expenses",null,null,{"$f":"SUM(E122:E123)","v":6304.62}]
[]
[null,"Net Cost",null,null,{"$f":"E119-E124","v":-945.36999999999989}]
[]
[9,"Ben Franks Trophy - Dec."]
[]
[null,"Gross Receipts - ",null,null,498]
[null,"plus:  Affiliation Fee charged at £5"]
[]
[null,"Manchester Bridge Club - 12 tables @ £12",null,null,126]
[null,"Manchester Bridge Club - Duplimating - 60 boards @ 20p/board",null,null,25]
[null,"Prize Money",null,null,180]
[null,"Tournament Director ",null,null,80]
[null,"Wine",null,null,43]
[null,"Mince Pies"]
[null,"Publicity & Postage",null,null,7.4]
[null,"EBU Masterpoints",null,null,14.76]
[null,"Engraving",null,null,4]
[]
[null,"Total Expenses",null,null,{"$f":"SUM(E133:E142)","v":480.15999999999997}]
[]
[null,"Net Receipts",null,null,{"$f":"E130-E143","v":17.840000000000032}]
[]
[10,"Summer Intermediate Pairs - June"]
[]
[null,"Gross Receipts ",null,null,350]
[]
[null,"Hire of Hall",null,null,84]
[null,"Director - Joan Lewis",null,null,45]
[null,"Hire of Equipment - ABC",null,null,20]
[null,"Duplimated boards",null,null,12]
[null,"Refreshments",null,null,13.5]
[null,"Sweets",null,null,10]
[null,"Publicity: envelopes and printing"]
[null,"Postage",null,null,3.24]
[null,"1st prize - cash",null,null,60]
[null,"2nd prize - cash",null,null,40]
[null,"3rd - 6th prizes - wine and chocs",null,null,41.96]
[]
[null,"Total Expenses",null,null,{"$f":"SUM(E151:E162)","v":329.7}]
[]
[null,"Net Receipts",null,null,{"$f":"E149-E163","v":20.300000000000011}]
[]
[11,"Autumn Intermediate Pairs"]
[]
[null,"Gross Receipts ",null,null,378]
[]
[null,"Hire of Hall ",null,null,92]
[null,"Director - Joan Lewis ",null,null,45]
[null,"Hire of Equipment -ABC ",null,null,20]
[null,"Duplimating boards ",null,null,12]
[null,"Refreshments ",null,null,18.75]
[null,"Sweets ",null,null,10]
[null,"Postage ",null,null,2.16]
[null,"1st Prizes - £40",null,null,80]
[null,"2nd Prizes - £20",null,null,40]
[null,"3rd Prizes - 4 x wine",null,null,21]
[null,"4th prizes - 4 x chocolates",null,null,19.96]
[null,"Caretaker",null,null,10]
[null,"Stationery/Printing",null,null,1]
[]
[null,"Total Expenses",null,null,{"$f":"SUM(E171:E184)","v":371.86999999999995}]
[]
[null,"Net Receipts",null,null,{"$f":"E169-E185","v":6.1300000000000523}]
[]
[12,"Cantor Cup - Feb"]
[]
[null,"Receipts"]
[]
[null,"Entrance Fees ",null,null,318]
[null,"Donation from Cantor Family",null,null,150]
[]
[null,"Gross Receipts",null,null,{"$f":"SUM(E193:E195)","v":468}]
[]
[null,"Hire of MBC Facilities",null,null,144]
[null,"Director - Joan Lewis",null,null,45]
[null,"Duplimated Boards",null,null,10]
[null,"60 copies hand records",null,null,3]
[null,"Refreshments - Scones + tea/coffee",null,null,72]
[null,"Sweets for table",null,null,10]
[null,"Replica Cups",null,null,11.9]
[null,"1st Prize",null,null,100]
[null,"2nd / 3rd Prize Wine",null,null,24]
[null,"4th Prize - Chocs",null,null,11]
[null,"Spot Prize",null,null,20]
[null,"Spot Prize",null,null,10]
[null,"Printing/Stationery",null,null,2]
[null,"Postage",null,null,13.16]
[]
[null,"Total Expenses",null,null,{"$f":"SUM(E198:E212)","v":476.06}]
[]
[null,"Profit/Loss",null,null,{"$f":"E196-E213","v":-8.0600000000000023}]
[]
[13,"Expenses for Representative Competitions"]
[]
[null,"Pachabo Cup",null,null,{"$f":"Expenses!AD192","v":256}]
[null,"Garden Cities - Entry for initial & final",null,null,{"$f":"Expenses!AE192","v":770}]
[null,"Corwen - Entry",null,null,{"$f":"Expenses!AA192","v":368}]
[null,"President's Cup - Entry",null,null,{"$f":"Expenses!AF192","v":205}]
[null,"Tollemache Cup - Entry",null,null,{"$f":"Expenses!Z90","v":416}]
[null,"Expenses for Tollemache*",null,null,{"$f":"Expenses!Z89+Expenses!Z102+Expenses!Z123+Expenses!Z144+Expenses!Z145","v":1150.4000000000001}]
[]
[]
[null,"Total Expenses",null,null,{"$f":"SUM(E219:E226)","v":3165.4}]
[]
[null,"Tollemache Expenses"]
[]
[null,"Expenses for 8 members of the team @ £50/member",400]
[null,"Non-playing captain's expenses",90.45]
[null,"Expenses for 8 members of the team in the final @ £75",600]
[null,"Non-playing captain's expenses",59.95]
[]
[null,"Total Expenses",{"$f":"SUM(C231:C235)","v":1150.4000000000001}]
[]
[14,"Youth Budget"]
[]
[null,"Equpment for University Bridge Club",null,null,200]
[]
[null,"Total",null,null,{"$f":"SUM(E240:E240)","v":200}]
[]
[15,"Retirement Gifts/Presentations/Receptions"]
[]
[null,"Player of the Year",null,null,50]
[null,"Joint Intermediate Players of the Year 2 @ £25",null,null,50]
[null,"Trophies engraved for POY's",null,null,19.5]
[null,"ABC caretaker-Xmas gift",null,null,20]
[null,"Joan Hinchcliffe's Leaving Present",null,null,50]
[]
[null,"Total",null,null,{"$f":"SUM(E246:E251)","v":189.5}]
[]
[16,"Seminars"]
[]
[null,"County C Team Seminar"]
[null,"Teaching",null,null,250]
[null,"Room Hire",null,null,50]
[]
[null,"Total",null,null,{"$f":"SUM(E256:E259)","v":300}]
[]
[17,"Prior Year Adjustments"]
[]
[null,"Room bookings prepaid last year",null,null,{"$f":"'Closing Debtors & Creditors'!D10","v":352}]
[null,"Additional receipts for 2014-15 league",null,null,{"$f":"'Closing Debtors & Creditors'!D15","v":21}]
[null,"Additional chrge for EBU League license",null,null,{"$f":"-'Closing Debtors & Creditors'!D20","v":-26}]
[]
[null,"Total",null,null,{"$f":"SUM(E264:E267)","v":347}]
[]
[18,"Prepaid Room Bookings for 2016-17"]
[]
[null,"GP Teams 2015"]
[null,"Summer Int. Pairs 2015",null,null,92]
[null,"GP Pairs 2016",null,null,50]
[null,"GP Teams 2016",null,null,{"$f":"184+50","v":234}]
[null,"Manchester Congress Deposit",null,null,500]
[null,"Prepayments-Room Bookings",null,null,{"$f":"SUM(E273:E276)","v":876}]
[]
[null,"Debtors-League Under-payments",null,null,{"$f":"'Closing Debtors & Creditors'!D67","v":179}]
[]
[null,"Total Debtors and Prepayments",null,null,{"$f":"E277+E279","v":1055}]
[]
[19,"Creditors"]
[null,"Unpresented Cheques",null,null,{"$f":"'Closing Debtors & Creditors'!E50","v":2490.65}]
[null,"Estimated EBU license fee for League 2015/16",null,null,489.6]
[null,"League Overpaymentss-see League calculations sheet",null,null,{"$f":"'Closing Debtors & Creditors'!E54","v":75}]
[null,null,null,null,{"$f":"SUM(E284:E286)","v":3055.25}]

{"sheet":"MembersList 2014","index":8,"n_rows":11,"n_cols":2,"rows_kept":11,"cut":false,"hidden":false,"merged":[]}
["MCBA Final Members List 2013 - 2014"]
[]
["P2P Full Members",1262]
["P2P Juniors",21]
["Direct Members",71]
["Direct Juniors",18]
["Teachers",13]
["Bridge for All",1]
["Anonymous Members",40]
[]
["Total Members",{"$f":"SUM(B3:B10)","v":1426}]

{"sheet":"League Calculations","index":9,"n_rows":90,"n_cols":11,"rows_kept":90,"cut":false,"hidden":false,"merged":[]}
[]
["Opening Balances @1st April 2015"]
["A) A provision was made for  £18 underpaid affiliation fees:"]
["Theses were not received and so were written off t the end of the year."]
[]
["Received at start of year re prior year, but no related op. bal. so added to this year's income:"]
[null,"£"]
["Davenport ",10]
["City Aces",11]
["Total",{"$f":"SUM(B8:B9)","v":21},"put in prior year corrections"]
["B) Provision was made for Overpayments re prior year:","£"]
["Rejuvenated",32]
["Conquering Hearts",6]
["Cheshire Cheeses",10]
["Chorlton Challengers",6]
["Totals",{"$f":"SUM(B12:B15)","v":54},"these were reversed out in the League overpayments col. On the Income sheet."]
["C) A provision was made for £416 extimated EBU License Fee"]
["Actual Charges:"]
["EBU inv. 568046, pd with chq. 1286 on 14/11/2015-Divs.1-6",380.8]
["part of EBU inv. 578684, pd with chq. 1337 on 18/05/2016-Div.7",61.2,"note: part of chq.payt. of £89.64 included in creditors (unpresented chqs). at yr/end"]
["EBU Licence Fee League 2015 - 2016",{"$f":"SUM(B19:B20)","v":442}]
["less;Provision made",-416]
[null,{"$f":"B21+B22","v":26},"Additional provision added to prior year corrections"]
[]
["Refunds made during the year:"]
["2015-03-10",1278,"League-City Aces refund-H. Weinstock",null,24]
["2015-03-10",1279,"League-Eureka refund-A.Morris",null,15]
["2015-03-10",1280,"League-North Star - refund-M. Hart",null,6]
[null,null,null,"Total",{"$f":"SUM(E26:E28)","v":45}]
[]
["Estimated EBU License Fee for 2015/2016:"]
["Division ","Quantity","Price","Ex VAT Total",null,"No. Teams"]
[null,"**"]
[1,440,0.17,{"$f":"(B34*C34)","v":74.800000000000011},null,11,"** 11 play 10 matches*4people"]
[2,440,0.17,{"$f":"B35*C35","v":74.800000000000011},null,11]
[3,360,0.17,61.2,null,10]
[4,360,0.17,61.2,null,10]
[5,288,0.17,48.96,null,9]
[6,288,0.17,48.96,null,9]
[7,224,0.17,38.080000000000005,null,8]
[]
["Net Total",{"$f":"SUM(B34:B41)","v":2400},0.17,408.00000000000006]
["VAT",null,null,{"$f":"D42*0.2","v":81.600000000000023}]
["Total",null,null,{"$f":"SUM(D42:D43)","v":489.60000000000008}]
[]
["Example found: EBU Licence Fee Higson Cup & Plate 2013 - 2014"]
[]
["Cup Final",360,0.16,{"$f":"B48*C48","v":57.6},null,"This is a prior year calculation. Last yeaar no provision was made for this. "]
["Plate Final",288,0.16,{"$f":"B49*C49","v":46.08},null,"and no charge was made by the EBU. I mentioned this in passing to the EBU "]
[null,null,null,null,null,"and they didn't seem to know what I was referring to, so I have concluded"]
["Net Total",null,null,{"$f":"SUM(D48:D50)","v":103.68},null,"that I will not make a provision. The ex-Treasurer and the League Secretary "]
["VAT",null,null,{"$f":"D51*0.2","v":20.736000000000004},null,"also didn't know what I was talking about!"]
["Total",null,null,{"$f":"SUM(D51:D52)","v":124.41600000000001}]
[]
[]
[null,null,null,null,null,null,null,"League & ",null,null,"Totals"]
["League Debtors @31/03/2015","Totals",null,"EBU P2P","EBU P2P","MCBA","EBU","Cup","Higson      ","Over"]
["(underpaid us)",null,null,"League","Cup","Affiliates","League",">4 players","Cup & Plate","Payment"]
[]
["Agamemnon",5,null,null,null,null,null,5,null,null,{"$f":"SUM(D60:J60)","v":5}]
["Petersfield",36,null,5,null,6,20,5,null,null,{"$f":"SUM(D61:J61)","v":36}]
["Imps R Us",6,null,null,null,6,null,null,null,null,{"$f":"SUM(D62:J62)","v":6}]
["Manchester S",6,null,null,null,6,null,null,null,null,6]
["Double Trouble",12,null,null,null,12,null,null,null,null,12]
["The Unconventionals",5,null,null,null,null,null,5,null,null,5]
["Bombay Sapphires",35,null,5,null,null,20,10,null,null,35]
["Adlan",24,null,null,null,24,null,null,null,null,24]
["Jems",25,null,5,null,null,20,null,null,null,25]
["Newcomers",25,null,5,null,null,20,null,null,null,25]
["Totals",{"$f":"SUM(B60:B69)","v":179},null,{"$f":"SUM(D60:D69)","v":20},0,54,80,25,0,0,179]
[]
["League Creditors @31/03/2015 (overpaid us)"]
["Red Bull",10]
["Cheshire Cheeses",4]
["Sedgeley",5]
["New Connections",10]
["Rejuvenated",11]
["Manchester Cardinals",5]
["Astra Zenaca Stars",10]
["Four Dummies",15]
["Touchung the Void",5]
["Totals",{"$f":"SUM(B73:B81)","v":75}]
[]
["Overpayments Analysis"]
["Underpayments",{"$f":"B70","v":179}]
["Overpayments",75]
[null,{"$f":"B86-B85","v":-104},"net underpayments-agrees to bank and League 2016 spredsheet"]
[]
["Reconciliation to League Spread-sheet"]
["The totals of every column in the League ss agrees to every column total in the cash-book exactly."]

{"sheet":"Sheet2","index":10,"n_rows":0,"n_cols":0,"rows_kept":0,"cut":false,"hidden":false,"merged":[]}